Workbook

Sheet 1. Info
AB1: Algoma Power Inc.
AB2: Atikokan Hydro Inc.
AB3: Attawapiskat Power Corporation
AB4: Bluewater Power Distribution Corporation
AB5: Brant County Power Inc.
AB6: Brantford Power Inc.
AB7: Burlington Hydro Inc.
AB8: Cambridge and North Dumfries Hydro Inc.
AB9: Canadian Niagara Power Inc.
AB10: Centre Wellington Hydro Ltd.
AB11: Chapleau Public Utilities Corporation
AB12: COLLUS PowerStream Corp.
A13: Drop-down lists are shaded blue; Input cells are shaded green. | AB13: Cooperative Hydro Embrun Inc.
AB14: E.L.K. Energy Inc.
C15: Utility Name | D15: Innpower Corporation | AB15: Enersource Hydro Mississauga Inc.
AB16: Entegrus Powerlines Inc.
C17: Service Territory | AB17: EnWin Utilities Ltd.
AB18: Erie Thames Powerlines Corporation
C19: Assigned EB Number | D19: EB-2016-nnnn | AB19: Espanola Regional Hydro Distribution Corporation
AB20: Essex Powerlines Corporation
C21: Name and Title | D21: Brenda L Pinke, Regulatory/CDM Manager | AB21: Festival Hydro Inc.
AB22: Fort Albany Power Corporation
C23: Phone Number | D23: 705-431-6870 Ext 262 | AB23: Fort Frances Power Corporation
AB24: Greater Sudbury Hydro Inc.
C25: Email Address | D25: brendap@innpower.ca | AB25: Grimsby Power Inc.
AB26: Guelph Hydro Electric Systems Inc.
C27: Date | D27: 2016-02-05 | AB27: Haldimand County Hydro Inc.
AB28: Halton Hills Hydro Inc.
C29: Last COS Re-based Year | D29: 2013 | AB29: Hearst Power Distribution Company Limited
AB30: Horizon Utilities Corporation
AB31: Hydro 2000 Inc.
AB32: Hydro Hawkesbury Inc.
AB33: Hydro One Brampton Networks Inc.
AB34: Hydro One Networks Inc.
AB35: Hydro One Remote Communities Inc.
AB36: Hydro Ottawa Limited
AB37: Innpower Corporation
AB38: Kashechewan Power Corporation
AB39: Kenora Hydro Electric Corporation Ltd.
AB40: Kingston Hydro Corporation
AB41: Kitchener-Wilmot Hydro Inc.
AB42: Lakefront Utilities Inc.
AB43: Lakeland Power Distribution Ltd.
AB44: London Hydro Inc.
AB45: Midland Power Utility Corporation
AB46: Milton Hydro Distribution Inc.
AB47: Newmarket-Tay Power Distribution Ltd.
AB48: Niagara Peninsula Energy Inc.
AB49: Niagara-on-the-Lake Hydro Inc.
AB50: Norfolk Power Distribution Inc.
AB51: North Bay Hydro Distribution Limited
AB52: Northern Ontario Wires Inc.
AB53: Oakville Hydro Electricity Distribution Inc.
AB54: Orangeville Hydro Limited
AB55: Orillia Power Distribution Corporation
AB56: Oshawa PUC Networks Inc.
AB57: Ottawa River Power Corporation
AB58: Peterborough Distribution Incorporated
AB59: PowerStream Inc.
AB60: PUC Distribution Inc.
AB61: Renfrew Hydro Inc.
AB62: Rideau St. Lawrence Distribution Inc.
AB63: Sioux Lookout Hydro Inc.
AB64: St. Thomas Energy Inc.
AB65: Thunder Bay Hydro Electricity Distribution Inc.
AB66: Tillsonburg Hydro Inc.
AB67: Toronto Hydro-Electric System Limited
AB68: Veridian Connections Inc.
AB69: Wasaga Distribution Inc.
AB70: Waterloo North Hydro Inc.
AB71: Welland Hydro-Electric System Corp.
AB72: Wellington North Power Inc.
AB73: West Coast Huron Energy Inc.
AB74: Westario Power Inc.
AB75: Whitby Hydro Electric Corporation
AB76: Woodstock Hydro Services Inc.

Sheet 2. Table of Contents
D20: 1. Info | I20: 6. Historical Wholesale
D22: 2. Table of Contents | I22: 7. Current Wholesale
D24: 3. Rate Classes | I24: 8. Forecast Wholesale
D26: 4. RRR Data | I26: 9. RTSR Rates to Forecast
D28: 5. UTRs and Sub-Transmission

Sheet 3. Rate Classes
C13: 1. Select the appropriate rate classes that appear on your most recent Board-Approved Tariff of Rates and Charges. 2. Enter the RTS Network and Connection Rate as it appears on the Tariff of Rates and Charges
C15: Rate Class | E15: Unit | G15: RTSR-Network | I15: RTSR-Connection
C17: Residential | E17: kWh | G17: 0.0057 | I17: 0.0041 | L17: =IF(OR(ISBLANK(C17), ISERROR(FIND("Choose", C17))=FALSE), 0, 1) -> 1 | M17: ="C" & ROW(C17) -> C17 | N17: =IF(OR(C17="General Service Intermediate Rate Class 1,000 To 4,999 kW (formerly General Service > 50 kW Customers)", C17="General Service Intermediate Rate Class 1,000 To 4,999 kW (formerly Large Use Customers)"), "x", "") ->  | W17: Choose Rate Class
C18: General Service Less Than 50 kW | E18: kWh | G18: 0.0052 | I18: 0.0039 | L18: 1 | M18: C18 | N18: =IF(OR(C18="General Service Intermediate Rate Class 1,000 To 4,999 kW (formerly General Service > 50 kW Customers)", C18="General Service Intermediate Rate Class 1,000 To 4,999 kW (formerly Large Use Customers)"), "x", "") ->  | W18: Residential
C19: General Service 50 to 4,999 kW | E19: kW | G19: 2.0385 | I19: 2.1757 | L19: 1 | M19: C19 | W19: Residential Regular
C20: General Service 50 to 4,999 kW – Interval Metered | E20: kW | G20: 2.0385 | I20: 2.1757 | L20: 1 | M20: C20 | W20: Residential Urban
C21: Unmetered Scattered Load | E21: kWh | G21: 0.0052 | I21: 0.0039 | L21: 1 | M21: C21 | W21: Residential Urban Year-Round
C22: Sentinel Lighting | E22: kW | G22: 1.5954 | I22: 1.7004 | L22: 1 | M22: C22 | W22: Residential Suburban
C23: Street Lighting | E23: kW | G23: 1.5873 | I23: 1.1469 | L23: 1 | M23: C23 | W23: Residential Suburban Seasonal
C24: Choose Rate Class | L24: 0 | M24: C24 | W24: Residential Suburban Year Round
C25: Choose Rate Class | L25: 0 | M25: C25 | W25: Residential - Time of Use
C26: Choose Rate Class | L26: 0 | M26: C26 | W26: Residential - Hensall
C27: Choose Rate Class | L27: 0 | M27: C27 | W27: Residential – High Density [R1]
C28: Choose Rate Class | L28: 0 | M28: C28 | W28: Residential – Normal Density [R2]
C29: Choose Rate Class | L29: 0 | M29: C29 | W29: Seasonal Residential – High Density [R3]
C30: Choose Rate Class | L30: 0 | M30: C30 | W30: Seasonal Residential – Normal Density [R4]
C31: Choose Rate Class | L31: 0 | M31: C31 | W31: Residential – Urban [UR]
C32: Choose Rate Class | L32: 0 | M32: C32 | W32: General Service Less Than 50 kW
C33: Choose Rate Class | L33: 0 | M33: C33 | W33: General Service Less Than 50 kW – Single Phase energy-billed [G1]
C34: Choose Rate Class | L34: 0 | M34: C34 | W34: General Service Less Than 50 kW – Three Phase energy-billed [G3]
C35: Choose Rate Class | L35: 0 | M35: C35 | W35: General Service Less Than 50 kW – Transmission Class energy-billed [T]
C36: Choose Rate Class | L36: 0 | M36: C36 | W36: General Service Less Than 50 kW – Urban energy-billed [UG]
C37: Choose Rate Class | L37: 0 | M37: C37 | W37: Westport Sewage Treatment Plant
C38: Choose Rate Class | L38: 0 | M38: C38 | W38: Small Commercial and USL - per meter
N39: =COUNTIF(N17:N38, "x") -> 0 | W39: Small Commercial and USL - per connection
W40: Farms – Single Phase energy-billed [F1]
W41: General Service 50 to 499 kW
W42: General Service 50 to 699 kW
W43: General Service 50 to 999 kW
W44: General Service 50 to 999 kW - Interval Metered
W45: General Service 50 to 1,000 kW
W46: General Service 50 to 1,000 kW - Interval Meters
W47: General Service 50 to 1,000 kW - Non Interval Meters
W48: General Service 50 to 1,499 kW
W49: General Service 50 to 1,499 kW - Interval Metered
W50: General Service 50 to 2,499 kW
W51: General Service 50 to 2,999 kW
W52: General Service 50 to 2,999 kW - Time of Use
W53: General Service 50 to 4,999 kW
W54: General Service 50 to 4,999 kW – Interval Metered
W55: General Service 50 to 4,999 kW - Time of Use
W56: General Service 50 to 4,999 kW (CoGeneration)
W57: General Service 50 to 4,999 kW (formerly Time of Use)
W58: General Service 500 to 4,999 kW
W59: General Service 700 to 4,999 kW
W60: General Service 1,000 to 2,999 kW
W61: General Service 1,000 to 4,999 kW
W62: General Service 1,000 to 4,999 kW - Interval Meters
W63: General Service 1,000 To 4,999 kW (co-generation)
W64: General Service Greater Than 1,000 kW
W65: General Service Intermediate Rate Class 1,000 To 4,999 kW (formerly Large Use Customers)
W66: General Service Intermediate Rate Class 1,000 To 4,999 kW (formerly General Service > 50 kW Customers)
W67: General Service 1,500 to 4,999 kW
W68: General Service Equal To Or Greater Than 1,500 kW
W69: General Service Equal To Or Greater Than 1,500 kW - Interval Metered
W70: General Service Intermediate 1,000 To 4,999 kW
W71: General Service 2,500 to 4,999 kW
W72: General Service 3,000 to 4,999 kW
W73: General Service 3,000 to 4,999 kW - Interval Metered
W74: General Service 3,000 to 4,999 kW - Intermediate Use
W75: General Service 3,000 to 4,999 kW - Time of Use
W76: Intermediate With Self Generation
W77: General Service - Commercial
W78: General Service - Institutional
W79: Farms – Three Phase energy-billed [F3]
W80: Large Use
W81: Large Use - Regular
W82: Large Use > 5000 kW
W83: Large Use - 3TS
W84: Large Use - Ford Annex
W85: Unmetered Scattered Load
W86: Sentinel Lighting
W87: Street Lighting
W88: Embedded Distributor
W89: Low Voltage Wheeling Charge Rate
W90: Stand-By
W91: Standby Power
W92: Standby Power – INTERIM APPROVAL
W93: Standby Power - APPROVED ON AN INTERIM BASIS
W94: Standby - General Service 50 - 1,000 kW
W95: Standby Power General Service 50 to 1,499 kW
W96: Standby - General Service 1,000 - 5,000 kW
W97: Standby Power General Service 1,500 to 4,999 kW
W98: Standby - Large Use
W99: Standby Power General Service Large Use
W100: Standby Distribution Service

Sheet 4. RRR Data
B15: Rate Class | C15: Rate Description | D15: Unit | E15: Rate | F15: Non-Loss Adjusted Metered kWh | G15: Non-Loss Adjusted Metered kW | H15: Applicable Loss Factor eg: (1.0325) | I15: Loss Adjusted Billed kWh
B17: Residential | C17: RTSR - Network | D17: kWh | E17: 0.0057 | F17: 149311532 | H17: 1.0678 | I17: =F17*H17 -> 159434853.9
B18: Residential | C18: RTSR - Connection | D18: kWh | E18: 0.0041 | F18: 149311532 | H18: 1.0678 | I18: =F18*H18 -> 159434853.9
B19: General Service Less Than 50 kW | C19: RTSR - Network | D19: kWh | E19: 0.0052 | F19: 33730295 | H19: 1.0678 | I19: =F19*H19 -> 36017209
B20: General Service Less Than 50 kW | C20: RTSR - Connection | D20: kWh | E20: 0.0039 | F20: 33730295 | H20: 1.0678 | I20: =F20*H20 -> 36017209
B21: General Service 50 to 4,999 kW | C21: RTSR - Network | D21: kW | E21: 2.0385 | F21: 19751251 | G21: 66619
B22: General Service 50 to 4,999 kW | C22: RTSR - Connection | D22: kW | E22: 2.1757 | F22: 19751251 | G22: 66619
B23: General Service 50 to 4,999 kW – Interval Metered | C23: RTSR - Network | D23: kW | E23: 2.0385 | F23: 34967663 | G23: 74982
B24: General Service 50 to 4,999 kW – Interval Metered | C24: RTSR - Connection | D24: kW | E24: 2.1757 | F24: 34967663 | G24: 74982
B25: Unmetered Scattered Load | C25: RTSR - Network | D25: kWh | E25: 0.0052 | F25: 463092 | H25: 1.0678 | I25: =F25*H25 -> 494489.6376
B26: Unmetered Scattered Load | C26: RTSR - Connection | D26: kWh | E26: 0.0039 | F26: 463092 | H26: 1.0678 | I26: =F26*H26 -> 494489.6376
B27: Sentinel Lighting | C27: RTSR - Network | D27: kW | E27: 1.5954 | F27: 107542 | G27: 298
B28: Sentinel Lighting | C28: RTSR - Connection | D28: kW | E28: 1.7004 | F28: 107542 | G28: 298
B29: Street Lighting | C29: RTSR - Network | D29: kW | E29: 1.5873 | F29: 1016454 | G29: 2886
B30: Street Lighting | C30: RTSR - Connection | D30: kW | E30: 1.1469 | F30: 1016454 | G30: 2886

Sheet 5. UTRs and Sub-Transmission
B18: Uniform Transmission Rates | C18: Unit | E18: Effective January 1, 2014 | G18: Effective January 1, 2015 | I18: Effective January 1, 2016
B20: Rate Description | E20: Rate | G20: Rate | I20: Rate
B22: Network Service Rate | C22: kW | E22: 3.82 | G22: 3.78 | I22: 3.78
B24: Line Connection Service Rate | C24: kW | E24: 0.82 | G24: 0.86 | I24: 0.86
B26: Transformation Connection Service Rate | C26: kW | E26: 1.98 | G26: 2 | I26: 2
B29: Hydro One Sub-Transmission Rates | C29: Unit | E29: Effective January 1, 2014 to April 30, 2015 | G29: Effective May 1, 2015 | I29: Effective January 1, 2016
B33: Rate Description | E33: Rate | G33: Rate | I33: Rate
B35: Network Service Rate | C35: kW | E35: 3.23 | G35: 3.4121 | I35: 3.66
B37: Line Connection Service Rate | C37: kW | E37: 0.65 | G37: 0.7879 | I37: 0.87
B39: Transformation Connection Service Rate | C39: kW | E39: 1.62 | G39: 1.8018 | I39: 2.02
B41: Both Line and Transformation Connection Service Rate | C41: kW | E41: =SUM(E39,E37) -> 2.27 | G41: =SUM(G39,G37) -> 2.5897 | I41: =SUM(I39,I37) -> 2.89
B44: If needed, add extra host here. (I) | C44: Unit | E44: Effective January 1, 2014 | G44: Effective January 1, 2015 | I44: Effective January 1, 2016
B48: Rate Description | E48: Rate | G48: Rate | I48: Rate
B50: Network Service Rate | C50: kW
B52: Line Connection Service Rate | C52: kW
B54: Transformation Connection Service Rate | C54: kW
B56: Both Line and Transformation Connection Service Rate | C56: kW | E56: =SUM(E52,E54) -> 0 | G56: =SUM(G52,G54) -> 0 | I56: =I54+I52 -> 0
B59: If needed, add extra host here. (II) | C59: Unit | E59: Effective January 1, 2014 | G59: Effective January 1, 2015 | I59: Effective January 1, 2016
B63: Rate Description | E63: Rate | G63: Rate | I63: Rate
B65: Network Service Rate | C65: kW
B67: Line Connection Service Rate | C67: kW
B69: Transformation Connection Service Rate | C69: kW
B71: Both Line and Transformation Connection Service Rate | C71: kW | E71: =SUM(E67,E69) -> 0 | G71: =SUM(G67,G69) -> 0 | I71: =I69+I67 -> 0
B75: Hydro One Sub-Transmission Rate Rider 9A | C75: Unit | E75: Effective January 1, 2014 | G75: Effective January 1, 2015 | I75: Effective January 1, 2016
B77: Rate Description | E77: Rate | G77: Rate | I77: Rate
B79: RSVA Transmission network – 4714 – which affects 1584 | C79: kW | E79: 0.1465 | G79: 0 | I79: 0
B81: RSVA Transmission connection – 4716 – which affects 1586 | C81: kW | E81: 0.0667 | G81: 0 | I81: 0
B83: RSVA LV – 4750 – which affects 1550 | C83: kW | E83: 0.0475 | G83: 0 | I83: 0
B85: RARA 1 – 2252 – which affects 1590 | C85: kW | E85: 0.0419 | G85: 0 | I85: 0
B87: RARA 1 – 2252 – which affects 1590 (2008) | C87: kW | E87: -0.027 | G87: 0 | I87: 0
B89: RARA 1 – 2252 – which affects 1590 (2009) | C89: kW | E89: -0.0006 | G89: 0 | I89: 0
B91: Hydro One Sub-Transmission Rate Rider 9A | C91: kW | E91: 0.275 | G91: 0 | I91: =SUM(I79:I89) -> 0
E94: Historical 2014 | G94: Current 2015 | I94: Forecast 2016
B95: Low Voltage Switchgear Credit (if applicable, enter as a negative value) | C95: $

Sheet 6. Historical Wholesale
B21: IESO | D21: Network | H21: Line Connection | L21: Transformation Connection | P21: Total Line
B22: Month | D22: Units Billed | E22: Rate | F22: Amount | H22: Units Billed | I22: Rate | J22: Amount | L22: Units Billed | M22: Rate | N22: Amount | P22: Amount
B24: January | E24: =IF(D24<>0,F24/D24,0) -> 0 | I24: =IF(H24<>0,J24/H24,0) -> 0 | M24: =IF(L24<>0,N24/L24,0) -> 0 | P24: =J24+N24 -> 0
B25: February | E25: =IF(D25<>0,F25/D25,0) -> 0 | I25: =IF(H25<>0,J25/H25,0) -> 0 | M25: =IF(L25<>0,N25/L25,0) -> 0 | P25: 0
B26: March | E26: 0 | I26: 0 | M26: 0 | P26: 0
B27: April | E27: 0 | I27: 0 | M27: 0 | P27: 0
B28: May | E28: 0 | I28: 0 | M28: 0 | P28: 0
B29: June | E29: 0 | I29: 0 | M29: 0 | P29: 0
B30: July | E30: 0 | I30: 0 | M30: 0 | P30: 0
B31: August | E31: 0 | I31: 0 | M31: 0 | P31: 0
B32: September | E32: 0 | I32: 0 | M32: 0 | P32: 0
B33: October | E33: 0 | I33: 0 | M33: 0 | P33: 0
B34: November | E34: 0 | I34: 0 | M34: 0 | P34: 0
B35: December | E35: 0 | I35: 0 | M35: 0 | P35: 0
B37: Total | D37: =SUM(D24:D35) -> 0 | E37: =IF(D37<>0,F37/D37,0) -> 0 | F37: =SUM(F24:F35) -> 0 | H37: =SUM(H24:H35) -> 0 | I37: =IF(H37<>0,J37/H37,0) -> 0 | J37: =SUM(J24:J35) -> 0 | L37: =SUM(L24:L35) -> 0 | M37: =IF(L37<>0,N37/L37,0) -> 0 | N37: =SUM(N24:N35) -> 0 | P37: =SUM(P24:P35) -> 0
B39: Hydro One | D39: Network | H39: Line Connection | L39: Transformation Connection | P39: Total Line
B41: Month | D41: Units Billed | E41: Rate | F41: Amount | H41: Units Billed | I41: Rate | J41: Amount | L41: Units Billed | M41: Rate | N41: Amount | P41: Amount
B43: January | D43: 47686.71 | E43: 3.23 | F43: =D43*E43 -> 154028.0733 | H43: 47837.45 | I43: 0.65 | J43: =H43*I43 -> 31094.3425 | L43: 47837.45 | M43: 1.62 | N43: =L43*M43 -> 77496.669 | P43: =J43+N43 -> 108591.0115
B44: February | D44: 49315.15 | E44: 3.23 | F44: =D44*E44 -> 159287.9345 | H44: 50980.83 | I44: 0.65 | J44: =H44*I44 -> 33137.5395 | L44: 50980.83 | M44: 1.62 | N44: =L44*M44 -> 82588.9446 | P44: 115726.4841
B45: March | D45: 36964.64 | E45: 3.23 | F45: 119395.7872 | H45: 40349.38 | I45: 0.65 | J45: 26227.097 | L45: 40349.38 | M45: 1.62 | N45: 65365.9956 | P45: 91593.0926
B46: April | D46: 34228 | E46: 3.23/3.41 | F46: =+D46*3.23+(D46*0.1821*0.2142889) -> 111892.0853 | H46: 36126.46 | I46: 0.65/.7989 | J46: =+H46*0.65+(H46*0.1379*0.2142889) -> 24549.75176 | L46: 36126.46 | M46: 1.62/1.80 | N46: =+L46*1.62+(L46*0.1818*0.2142889) -> 59932.26979 | P46: 84482.02155
B47: May | D47: 37837.44 | E47: 3.4121 | F47: 129105.129 | H47: 38096.48 | I47: 0.7879 | J47: =H47*I47 -> 30016.21659 | L47: 38096.48 | M47: 1.8018 | N47: =L47*M47 -> 68642.23766 | P47: 98658.45426
B48: June | D48: 40588.63 | E48: 3.4121 | F48: 138492.4644 | H48: 40594.4 | I48: 0.7879 | J48: =H48*I48 -> 31984.32776 | L48: 40594.4 | M48: 1.8018 | N48: =L48*M48 -> 73142.98992 | P48: 105127.3177
B49: July | D49: 48974.8 | E49: 3.4121 | F49: 167106.9151 | H49: 48974.8 | I49: 0.7879 | J49: 38587.24492 | L49: 48974.8 | M49: 1.8018 | N49: 88242.79464 | P49: 126830.0396
B50: August | D50: 48999.38 | E50: 3.4121 | F50: 167190.7845 | H50: 50218.25 | I50: 0.7879 | J50: 39566.95918 | L50: 50218.25 | M50: 1.8018 | N50: 90483.24285 | P50: 130050.202
B51: September | D51: 39102.91 | E51: 3.4121 | F51: 133423.0392 | H51: 41214.53 | I51: 0.7879 | J51: 32472.92819 | L51: 41214.53 | M51: 1.8018 | N51: 74260.34015 | P51: 106733.2683
B52: October | D52: 38719.58 | E52: 3.4121 | F52: 132115.0789 | H52: 39919.84 | I52: 0.7879 | J52: 31452.84194 | L52: 39919.84 | M52: 1.8018 | N52: 71927.56771 | P52: 103380.4096
B53: November | D53: 47999.06 | E53: 3.4121 | F53: 163777.5926 | H53: 50241.05 | I53: 0.7879 | J53: 39584.9233 | L53: 50241.05 | M53: 1.8018 | N53: 90524.32389 | P53: 130109.2472
B54: December | D54: 39783.6 | E54: 3.4121 | F54: 135745.6216 | H54: 43105.01 | I54: 0.7879 | J54: 33962.43738 | L54: 43105.01 | M54: 1.8018 | N54: 77666.60702 | P54: 111629.0444
B56: Total | D56: =SUM(D43:D54) -> 510199.9 | E56: =IF(D56<>0,F56/D56,0) -> 3.354686086 | F56: =SUM(F43:F54) -> 1711560.506 | H56: =SUM(H43:H54) -> 527658.48 | I56: =IF(H56<>0,J56/H56,0) -> 0.7441112479 | J56: =SUM(J43:J54) -> 392636.61 | L56: =SUM(L43:L54) -> 527658.48 | M56: =IF(L56<>0,N56/L56,0) -> 1.744071246 | N56: =SUM(N43:N54) -> 920273.9828 | P56: =SUM(P43:P54) -> 1312910.593
B58: Add Extra Host Here (I) | D58: Network | H58: Line Connection | L58: Transformation Connection | P58: Total Line
B59: (if needed)
B60: Month | D60: Units Billed | E60: Rate | F60: Amount | H60: Units Billed | I60: Rate | J60: Amount | L60: Units Billed | M60: Rate | N60: Amount | P60: Amount
B62: January | E62: =IF(D62<>0,F62/D62,0) -> 0 | I62: =IF(H62<>0,J62/H62,0) -> 0 | M62: =IF(L62<>0,N62/L62,0) -> 0 | P62: =J62+N62 -> 0
B63: February | E63: 0 | I63: 0 | M63: 0 | P63: 0
B64: March | E64: 0 | I64: 0 | M64: 0 | P64: 0
B65: April | E65: 0 | I65: 0 | M65: 0 | P65: 0
B66: May | E66: 0 | I66: 0 | M66: 0 | P66: 0
B67: June | E67: 0 | I67: 0 | M67: 0 | P67: 0
B68: July | E68: 0 | I68: 0 | M68: 0 | P68: 0
B69: August | E69: 0 | I69: 0 | M69: 0 | P69: 0
B70: September | E70: 0 | I70: 0 | M70: 0 | P70: 0
B71: October | E71: 0 | I71: 0 | M71: 0 | P71: 0
B72: November | E72: 0 | I72: 0 | M72: 0 | P72: 0
B73: December | E73: 0 | I73: 0 | M73: 0 | P73: 0
B75: Total | D75: =SUM(D62:D73) -> 0 | E75: =IF(D75<>0,F75/D75,0) -> 0 | F75: =SUM(F62:F73) -> 0 | H75: =SUM(H62:H73) -> 0 | I75: =IF(H75<>0,J75/H75,0) -> 0 | J75: =SUM(J62:J73) -> 0 | L75: =SUM(L62:L73) -> 0 | M75: =IF(L75<>0,N75/L75,0) -> 0 | N75: =SUM(N62:N73) -> 0 | P75: =SUM(P62:P73) -> 0
B77: Add Extra Host Here (II) | D77: Network | H77: Line Connection | L77: Transformation Connection | P77: Total Line
B78: (if needed)
B79: Month | D79: Units Billed | E79: Rate | F79: Amount | H79: Units Billed | I79: Rate | J79: Amount | L79: Units Billed | M79: Rate | N79: Amount | P79: Amount
B81: January | E81: =IF(D81<>0,F81/D81,0) -> 0 | I81: =IF(H81<>0,J81/H81,0) -> 0 | M81: =IF(L81<>0,N81/L81,0) -> 0 | P81: =J81+N81 -> 0
B82: February | E82: 0 | I82: 0 | M82: 0 | P82: 0
B83: March | E83: 0 | I83: 0 | M83: 0 | P83: 0
B84: April | E84: 0 | I84: 0 | M84: 0 | P84: 0
B85: May | E85: 0 | I85: 0 | M85: 0 | P85: 0
B86: June | E86: 0 | I86: 0 | M86: 0 | P86: 0
B87: July | E87: 0 | I87: 0 | M87: 0 | P87: 0
B88: August | E88: 0 | I88: 0 | M88: 0 | P88: 0
B89: September | E89: 0 | I89: 0 | M89: 0 | P89: 0
B90: October | E90: 0 | I90: 0 | M90: 0 | P90: 0
B91: November | E91: 0 | I91: 0 | M91: 0 | P91: 0
B92: December | E92: 0 | I92: 0 | M92: 0 | P92: 0
B94: Total | D94: =SUM(D81:D92) -> 0 | E94: =IF(D94<>0,F94/D94,0) -> 0 | F94: =SUM(F81:F92) -> 0 | H94: =SUM(H81:H92) -> 0 | I94: =IF(H94<>0,J94/H94,0) -> 0 | J94: =SUM(J81:J92) -> 0 | L94: =SUM(L81:L92) -> 0 | M94: =IF(L94<>0,N94/L94,0) -> 0 | N94: =SUM(N81:N92) -> 0 | P94: =SUM(P81:P92) -> 0
B96: Total | D96: Network | H96: Line Connection | L96: Transformation Connection | P96: Total Line
B98: Month | D98: Units Billed | E98: Rate | F98: Amount | H98: Units Billed | I98: Rate | J98: Amount | L98: Units Billed | M98: Rate | N98: Amount | P98: Amount
B100: January | D100: =D24+D43+D62+D81 -> 47686.71 | E100: =IF(D100<>0,F100/D100,0) -> 3.23 | F100: =F24+F43+F62+F81 -> 154028.0733 | H100: =H24+H43+H62+H81 -> 47837.45 | I100: =IF(H100<>0,J100/H100,0) -> 0.65 | J100: =J24+J43+J62+J81 -> 31094.3425 | L100: =L24+L43+L62+L81 -> 47837.45 | M100: =IF(L100<>0,N100/L100,0) -> 1.62 | N100: =N24+N43+N62+N81 -> 77496.669 | P100: =J100+N100 -> 108591.0115
B101: February | D101: =D25+D44+D63+D82 -> 49315.15 | E101: 3.23 | F101: =F25+F44+F63+F82 -> 159287.9345 | H101: =H25+H44+H63+H82 -> 50980.83 | I101: 0.65 | J101: =J25+J44+J63+J82 -> 33137.5395 | L101: =L25+L44+L63+L82 -> 50980.83 | M101: 1.62 | N101: =N25+N44+N63+N82 -> 82588.9446 | P101: 115726.4841
B102: March | D102: 36964.64 | E102: 3.23 | F102: 119395.7872 | H102: 40349.38 | I102: 0.65 | J102: 26227.097 | L102: 40349.38 | M102: 1.62 | N102: 65365.9956 | P102: 91593.0926
B103: April | D103: 34228 | E103: 3.269022009 | F103: 111892.0853 | H103: 36126.46 | I103: 0.6795504393 | J103: 24549.75176 | L103: 36126.46 | M103: 1.658957722 | N103: 59932.26979 | P103: 84482.02155
B104: May | D104: 37837.44 | E104: 3.4121 | F104: 129105.129 | H104: 38096.48 | I104: 0.7879 | J104: 30016.21659 | L104: 38096.48 | M104: 1.8018 | N104: 68642.23766 | P104: 98658.45426
B105: June | D105: 40588.63 | E105: 3.4121 | F105: 138492.4644 | H105: 40594.4 | I105: 0.7879 | J105: 31984.32776 | L105: 40594.4 | M105: 1.8018 | N105: 73142.98992 | P105: 105127.3177
B106: July | D106: 48974.8 | E106: 3.4121 | F106: 167106.9151 | H106: 48974.8 | I106: 0.7879 | J106: 38587.24492 | L106: 48974.8 | M106: 1.8018 | N106: 88242.79464 | P106: 126830.0396
B107: August | D107: 48999.38 | E107: 3.4121 | F107: 167190.7845 | H107: 50218.25 | I107: 0.7879 | J107: 39566.95918 | L107: 50218.25 | M107: 1.8018 | N107: 90483.24285 | P107: 130050.202
B108: September | D108: 39102.91 | E108: 3.4121 | F108: 133423.0392 | H108: 41214.53 | I108: 0.7879 | J108: 32472.92819 | L108: 41214.53 | M108: 1.8018 | N108: 74260.34015 | P108: 106733.2683
B109: October | D109: 38719.58 | E109: 3.4121 | F109: 132115.0789 | H109: 39919.84 | I109: 0.7879 | J109: 31452.84194 | L109: 39919.84 | M109: 1.8018 | N109: 71927.56771 | P109: 103380.4096
B110: November | D110: 47999.06 | E110: 3.4121 | F110: 163777.5926 | H110: 50241.05 | I110: 0.7879 | J110: 39584.9233 | L110: 50241.05 | M110: 1.8018 | N110: 90524.32389 | P110: 130109.2472
B111: December | D111: 39783.6 | E111: 3.4121 | F111: 135745.6216 | H111: 43105.01 | I111: 0.7879 | J111: 33962.43738 | L111: 43105.01 | M111: 1.8018 | N111: 77666.60702 | P111: 111629.0444
B113: Total | D113: =SUM(D100:D111) -> 510199.9 | E113: =IF(D113<>0,F113/D113,0) -> 3.354686086 | F113: =SUM(F100:F111) -> 1711560.506 | H113: =SUM(H100:H111) -> 527658.48 | I113: =IF(H113<>0,J113/H113,0) -> 0.7441112479 | J113: =SUM(J100:J111) -> 392636.61 | L113: =SUM(L100:L111) -> 527658.48 | M113: =IF(L113<>0,N113/L113,0) -> 1.744071246 | N113: =SUM(N100:N111) -> 920273.9828 | P113: =SUM(P100:P111) -> 1312910.593
N115: Low Voltage Switchgear Credit (if applicable) | P115: ='5. UTRs and Sub-Transmission'!E95 -> 0
N117: Total including deduction for Low Voltage Switchgear Credit | P117: =P113+P115 -> 1312910.593

Sheet 7. Current Wholesale
B13: The purpose of this sheet is to calculate the expected billing when current 2015 Uniform Transmission Rates are applied against historical 2014 transmission units.
B20: IESO | D20: Network | H20: Line Connection | L20: Transformation Connection | P20: Total Line
B22: Month | D22: Units Billed | E22: Rate | F22: Amount | H22: Units Billed | I22: Rate | J22: Amount | L22: Units Billed | M22: Rate | N22: Amount | P22: Amount
B24: January | D24: ='6. Historical Wholesale'!D24 -> 0 | E24: ='5. UTRs and Sub-Transmission'!G22 -> 3.78 | F24: =D24*E24 -> 0 | H24: ='6. Historical Wholesale'!H24 -> 0 | I24: ='5. UTRs and Sub-Transmission'!G24 -> 0.86 | J24: =H24*I24 -> 0 | L24: ='6. Historical Wholesale'!L24 -> 0 | M24: ='5. UTRs and Sub-Transmission'!G26 -> 2 | N24: =L24*M24 -> 0 | P24: =J24+N24 -> 0
B25: February | D25: ='6. Historical Wholesale'!D25 -> 0 | E25: =E24 -> 3.78 | F25: =D25*E25 -> 0 | H25: ='6. Historical Wholesale'!H25 -> 0 | I25: =I24 -> 0.86 | J25: =H25*I25 -> 0 | L25: ='6. Historical Wholesale'!L25 -> 0 | M25: =M24 -> 2 | N25: =L25*M25 -> 0 | P25: 0
B26: March | D26: ='6. Historical Wholesale'!D26 -> 0 | E26: =E25 -> 3.78 | F26: 0 | H26: ='6. Historical Wholesale'!H26 -> 0 | I26: =I25 -> 0.86 | J26: 0 | L26: ='6. Historical Wholesale'!L26 -> 0 | M26: =M25 -> 2 | N26: 0 | P26: 0
B27: April | D27: ='6. Historical Wholesale'!D27 -> 0 | E27: 3.78 | F27: 0 | H27: ='6. Historical Wholesale'!H27 -> 0 | I27: 0.86 | J27: 0 | L27: ='6. Historical Wholesale'!L27 -> 0 | M27: 2 | N27: 0 | P27: 0
B28: May | D28: ='6. Historical Wholesale'!D28 -> 0 | E28: 3.78 | F28: 0 | H28: ='6. Historical Wholesale'!H28 -> 0 | I28: 0.86 | J28: 0 | L28: ='6. Historical Wholesale'!L28 -> 0 | M28: 2 | N28: 0 | P28: 0
B29: June | D29: ='6. Historical Wholesale'!D29 -> 0 | E29: 3.78 | F29: 0 | H29: ='6. Historical Wholesale'!H29 -> 0 | I29: 0.86 | J29: 0 | L29: ='6. Historical Wholesale'!L29 -> 0 | M29: 2 | N29: 0 | P29: 0
B30: July | D30: ='6. Historical Wholesale'!D30 -> 0 | E30: 3.78 | F30: 0 | H30: ='6. Historical Wholesale'!H30 -> 0 | I30: 0.86 | J30: 0 | L30: ='6. Historical Wholesale'!L30 -> 0 | M30: 2 | N30: 0 | P30: 0
B31: August | D31: ='6. Historical Wholesale'!D31 -> 0 | E31: 3.78 | F31: 0 | H31: ='6. Historical Wholesale'!H31 -> 0 | I31: 0.86 | J31: 0 | L31: ='6. Historical Wholesale'!L31 -> 0 | M31: 2 | N31: 0 | P31: 0
B32: September | D32: ='6. Historical Wholesale'!D32 -> 0 | E32: 3.78 | F32: 0 | H32: ='6. Historical Wholesale'!H32 -> 0 | I32: 0.86 | J32: 0 | L32: ='6. Historical Wholesale'!L32 -> 0 | M32: 2 | N32: 0 | P32: 0
B33: October | D33: ='6. Historical Wholesale'!D33 -> 0 | E33: 3.78 | F33: 0 | H33: ='6. Historical Wholesale'!H33 -> 0 | I33: 0.86 | J33: 0 | L33: ='6. Historical Wholesale'!L33 -> 0 | M33: 2 | N33: 0 | P33: 0
B34: November | D34: ='6. Historical Wholesale'!D34 -> 0 | E34: 3.78 | F34: 0 | H34: ='6. Historical Wholesale'!H34 -> 0 | I34: 0.86 | J34: 0 | L34: ='6. Historical Wholesale'!L34 -> 0 | M34: 2 | N34: 0 | P34: 0
B35: December | D35: ='6. Historical Wholesale'!D35 -> 0 | E35: 3.78 | F35: 0 | H35: ='6. Historical Wholesale'!H35 -> 0 | I35: 0.86 | J35: 0 | L35: ='6. Historical Wholesale'!L35 -> 0 | M35: 2 | N35: 0 | P35: 0
B37: Total | D37: =SUM(D24:D35) -> 0 | E37: =IF(D37<>0,F37/D37,0) -> 0 | F37: =SUM(F24:F35) -> 0 | H37: =SUM(H24:H35) -> 0 | I37: =IF(H37<>0,J37/H37,0) -> 0 | J37: =SUM(J24:J35) -> 0 | L37: =SUM(L24:L35) -> 0 | M37: =IF(L37<>0,N37/L37,0) -> 0 | N37: =SUM(N24:N35) -> 0 | P37: =SUM(P24:P35) -> 0
B39: Hydro One | D39: Network | H39: Line Connection | L39: Transformation Connection | P39: Total Line
B41: Month | D41: Units Billed | E41: Rate | F41: Amount | H41: Units Billed | I41: Rate | J41: Amount | L41: Units Billed | M41: Rate | N41: Amount | P41: Amount
B43: January | D43: ='6. Historical Wholesale'!D43 -> 47686.71 | E43: ='5. UTRs and Sub-Transmission'!G35+'5. UTRs and Sub-Transmission'!G79 -> 3.4121 | F43: =D43*E43 -> 162711.8232 | H43: ='6. Historical Wholesale'!H43 -> 47837.45 | I43: ='5. UTRs and Sub-Transmission'!G37+'5. UTRs and Sub-Transmission'!G81 -> 0.7879 | J43: =H43*I43 -> 37691.12686 | L43: ='6. Historical Wholesale'!L43 -> 47837.45 | M43: ='5. UTRs and Sub-Transmission'!G39 -> 1.8018 | N43: =L43*M43 -> 86193.51741 | P43: =J43+N43 -> 123884.6443
B44: February | D44: ='6. Historical Wholesale'!D44 -> 49315.15 | E44: =E43 -> 3.4121 | F44: =D44*E44 -> 168268.2233 | H44: ='6. Historical Wholesale'!H44 -> 50980.83 | I44: =I43 -> 0.7879 | J44: =H44*I44 -> 40167.79596 | L44: ='6. Historical Wholesale'!L44 -> 50980.83 | M44: =M43 -> 1.8018 | N44: =L44*M44 -> 91857.25949 | P44: 132025.0555
B45: March | D45: ='6. Historical Wholesale'!D45 -> 36964.64 | E45: =E44 -> 3.4121 | F45: 126127.0481 | H45: ='6. Historical Wholesale'!H45 -> 40349.38 | I45: =I44 -> 0.7879 | J45: 31791.2765 | L45: ='6. Historical Wholesale'!L45 -> 40349.38 | M45: =M44 -> 1.8018 | N45: 72701.51288 | P45: 104492.7894
B46: April | D46: ='6. Historical Wholesale'!D46 -> 34228 | E46: 3.4121 | F46: 116789.3588 | H46: ='6. Historical Wholesale'!H46 -> 36126.46 | I46: 0.7879 | J46: 28464.03783 | L46: ='6. Historical Wholesale'!L46 -> 36126.46 | M46: =M45 -> 1.8018 | N46: 65092.65563 | P46: 93556.69346
B47: May | D47: ='6. Historical Wholesale'!D47 -> 37837.44 | E47: 3.4121 | F47: 129105.129 | H47: ='6. Historical Wholesale'!H47 -> 38096.48 | I47: 0.7879 | J47: 30016.21659 | L47: ='6. Historical Wholesale'!L47 -> 38096.48 | M47: 1.8018 | N47: 68642.23766 | P47: 98658.45426
B48: June | D48: ='6. Historical Wholesale'!D48 -> 40588.63 | E48: 3.4121 | F48: 138492.4644 | H48: ='6. Historical Wholesale'!H48 -> 40594.4 | I48: 0.7879 | J48: 31984.32776 | L48: ='6. Historical Wholesale'!L48 -> 40594.4 | M48: 1.8018 | N48: 73142.98992 | P48: 105127.3177
B49: July | D49: ='6. Historical Wholesale'!D49 -> 48974.8 | E49: 3.4121 | F49: 167106.9151 | H49: ='6. Historical Wholesale'!H49 -> 48974.8 | I49: 0.7879 | J49: 38587.24492 | L49: ='6. Historical Wholesale'!L49 -> 48974.8 | M49: 1.8018 | N49: 88242.79464 | P49: 126830.0396
B50: August | D50: ='6. Historical Wholesale'!D50 -> 48999.38 | E50: 3.4121 | F50: 167190.7845 | H50: ='6. Historical Wholesale'!H50 -> 50218.25 | I50: 0.7879 | J50: 39566.95918 | L50: ='6. Historical Wholesale'!L50 -> 50218.25 | M50: 1.8018 | N50: 90483.24285 | P50: 130050.202
B51: September | D51: ='6. Historical Wholesale'!D51 -> 39102.91 | E51: 3.4121 | F51: 133423.0392 | H51: ='6. Historical Wholesale'!H51 -> 41214.53 | I51: 0.7879 | J51: 32472.92819 | L51: ='6. Historical Wholesale'!L51 -> 41214.53 | M51: 1.8018 | N51: 74260.34015 | P51: 106733.2683
B52: October | D52: ='6. Historical Wholesale'!D52 -> 38719.58 | E52: 3.4121 | F52: 132115.0789 | H52: ='6. Historical Wholesale'!H52 -> 39919.84 | I52: 0.7879 | J52: 31452.84194 | L52: ='6. Historical Wholesale'!L52 -> 39919.84 | M52: 1.8018 | N52: 71927.56771 | P52: 103380.4096
B53: November | D53: ='6. Historical Wholesale'!D53 -> 47999.06 | E53: 3.4121 | F53: 163777.5926 | H53: ='6. Historical Wholesale'!H53 -> 50241.05 | I53: 0.7879 | J53: 39584.9233 | L53: ='6. Historical Wholesale'!L53 -> 50241.05 | M53: 1.8018 | N53: 90524.32389 | P53: 130109.2472
B54: December | D54: ='6. Historical Wholesale'!D54 -> 39783.6 | E54: 3.4121 | F54: 135745.6216 | H54: ='6. Historical Wholesale'!H54 -> 43105.01 | I54: 0.7879 | J54: 33962.43738 | L54: ='6. Historical Wholesale'!L54 -> 43105.01 | M54: 1.8018 | N54: 77666.60702 | P54: 111629.0444
B56: Total | D56: =SUM(D43:D54) -> 510199.9 | E56: =IF(D56<>0,F56/D56,0) -> 3.4121 | F56: =SUM(F43:F54) -> 1740853.079 | H56: =SUM(H43:H54) -> 527658.48 | I56: =IF(H56<>0,J56/H56,0) -> 0.7879 | J56: =SUM(J43:J54) -> 415742.1164 | L56: =SUM(L43:L54) -> 527658.48 | M56: =IF(L56<>0,N56/L56,0) -> 1.8018 | N56: =SUM(N43:N54) -> 950735.0493 | P56: =SUM(P43:P54) -> 1366477.166
B58: ='6. Historical Wholesale'!B58 -> Add Extra Host Here (I) | D58: Network | H58: Line Connection | L58: Transformation Connection | P58: Total Line
B60: Month | D60: Units Billed | E60: Rate | F60: Amount | H60: Units Billed | I60: Rate | J60: Amount | L60: Units Billed | M60: Rate | N60: Amount | P60: Amount
B62: January | D62: ='6. Historical Wholesale'!D62 -> 0 | E62: ='5. UTRs and Sub-Transmission'!G50 -> 0 | F62: =D62*E62 -> 0 | H62: ='6. Historical Wholesale'!H62 -> 0 | I62: ='5. UTRs and Sub-Transmission'!G52 -> 0 | J62: =H62*I62 -> 0 | L62: ='6. Historical Wholesale'!L62 -> 0 | M62: ='5. UTRs and Sub-Transmission'!G54 -> 0 | N62: =L62*M62 -> 0 | P62: =J62+N62 -> 0
B63: February | D63: ='6. Historical Wholesale'!D63 -> 0 | E63: =E62 -> 0 | F63: =D63*E63 -> 0 | H63: ='6. Historical Wholesale'!H63 -> 0 | I63: =I62 -> 0 | J63: =H63*I63 -> 0 | L63: ='6. Historical Wholesale'!L63 -> 0 | M63: =M62 -> 0 | N63: =L63*M63 -> 0 | P63: 0
B64: March | D64: ='6. Historical Wholesale'!D64 -> 0 | E64: =E63 -> 0 | F64: 0 | H64: ='6. Historical Wholesale'!H64 -> 0 | I64: =I63 -> 0 | J64: 0 | L64: ='6. Historical Wholesale'!L64 -> 0 | M64: =M63 -> 0 | N64: 0 | P64: 0
B65: April | D65: ='6. Historical Wholesale'!D65 -> 0 | E65: 0 | F65: 0 | H65: ='6. Historical Wholesale'!H65 -> 0 | I65: 0 | J65: 0 | L65: ='6. Historical Wholesale'!L65 -> 0 | M65: =M64 -> 0 | N65: 0 | P65: 0
B66: May | D66: ='6. Historical Wholesale'!D66 -> 0 | E66: 0 | F66: 0 | H66: ='6. Historical Wholesale'!H66 -> 0 | I66: 0 | J66: 0 | L66: ='6. Historical Wholesale'!L66 -> 0 | M66: 0 | N66: 0 | P66: 0
B67: June | D67: ='6. Historical Wholesale'!D67 -> 0 | E67: 0 | F67: 0 | H67: ='6. Historical Wholesale'!H67 -> 0 | I67: 0 | J67: 0 | L67: ='6. Historical Wholesale'!L67 -> 0 | M67: 0 | N67: 0 | P67: 0
B68: July | D68: ='6. Historical Wholesale'!D68 -> 0 | E68: 0 | F68: 0 | H68: ='6. Historical Wholesale'!H68 -> 0 | I68: 0 | J68: 0 | L68: ='6. Historical Wholesale'!L68 -> 0 | M68: 0 | N68: 0 | P68: 0
B69: August | D69: ='6. Historical Wholesale'!D69 -> 0 | E69: 0 | F69: 0 | H69: ='6. Historical Wholesale'!H69 -> 0 | I69: 0 | J69: 0 | L69: ='6. Historical Wholesale'!L69 -> 0 | M69: 0 | N69: 0 | P69: 0
B70: September | D70: ='6. Historical Wholesale'!D70 -> 0 | E70: 0 | F70: 0 | H70: ='6. Historical Wholesale'!H70 -> 0 | I70: 0 | J70: 0 | L70: ='6. Historical Wholesale'!L70 -> 0 | M70: 0 | N70: 0 | P70: 0
B71: October | D71: ='6. Historical Wholesale'!D71 -> 0 | E71: 0 | F71: 0 | H71: ='6. Historical Wholesale'!H71 -> 0 | I71: 0 | J71: 0 | L71: ='6. Historical Wholesale'!L71 -> 0 | M71: 0 | N71: 0 | P71: 0
B72: November | D72: ='6. Historical Wholesale'!D72 -> 0 | E72: 0 | F72: 0 | H72: ='6. Historical Wholesale'!H72 -> 0 | I72: 0 | J72: 0 | L72: ='6. Historical Wholesale'!L72 -> 0 | M72: 0 | N72: 0 | P72: 0
B73: December | D73: ='6. Historical Wholesale'!D73 -> 0 | E73: 0 | F73: 0 | H73: ='6. Historical Wholesale'!H73 -> 0 | I73: 0 | J73: 0 | L73: ='6. Historical Wholesale'!L73 -> 0 | M73: 0 | N73: 0 | P73: 0
B75: Total | D75: =SUM(D62:D73) -> 0 | E75: =IF(D75<>0,F75/D75,0) -> 0 | F75: =SUM(F62:F73) -> 0 | H75: =SUM(H62:H73) -> 0 | I75: =IF(H75<>0,J75/H75,0) -> 0 | J75: =SUM(J62:J73) -> 0 | L75: =SUM(L62:L73) -> 0 | M75: =IF(L75<>0,N75/L75,0) -> 0 | N75: =SUM(N62:N73) -> 0 | P75: =SUM(P62:P73) -> 0
B77: ='6. Historical Wholesale'!B77 -> Add Extra Host Here (II) | D77: Network | H77: Line Connection | L77: Transformation Connection | P77: Total Line
B79: Month | D79: Units Billed | E79: Rate | F79: Amount | H79: Units Billed | I79: Rate | J79: Amount | L79: Units Billed | M79: Rate | N79: Amount | P79: Amount
B81: January | D81: ='6. Historical Wholesale'!D81 -> 0 | E81: ='5. UTRs and Sub-Transmission'!G65 -> 0 | F81: =D81*E81 -> 0 | H81: ='6. Historical Wholesale'!H81 -> 0 | I81: ='5. UTRs and Sub-Transmission'!G67 -> 0 | J81: =H81*I81 -> 0 | L81: ='6. Historical Wholesale'!L81 -> 0 | M81: ='5. UTRs and Sub-Transmission'!G69 -> 0 | N81: =L81*M81 -> 0 | P81: =J81+N81 -> 0
B82: February | D82: ='6. Historical Wholesale'!D82 -> 0 | E82: =E81 -> 0 | F82: =D82*E82 -> 0 | H82: ='6. Historical Wholesale'!H82 -> 0 | I82: =I81 -> 0 | J82: =H82*I82 -> 0 | L82: ='6. Historical Wholesale'!L82 -> 0 | M82: =M81 -> 0 | N82: =L82*M82 -> 0 | P82: 0
B83: March | D83: ='6. Historical Wholesale'!D83 -> 0 | E83: =E82 -> 0 | F83: 0 | H83: ='6. Historical Wholesale'!H83 -> 0 | I83: =I82 -> 0 | J83: 0 | L83: ='6. Historical Wholesale'!L83 -> 0 | M83: =M82 -> 0 | N83: 0 | P83: 0
B84: April | D84: ='6. Historical Wholesale'!D84 -> 0 | E84: 0 | F84: 0 | H84: ='6. Historical Wholesale'!H84 -> 0 | I84: 0 | J84: 0 | L84: ='6. Historical Wholesale'!L84 -> 0 | M84: =M83 -> 0 | N84: 0 | P84: 0
B85: May | D85: ='6. Historical Wholesale'!D85 -> 0 | E85: 0 | F85: 0 | H85: ='6. Historical Wholesale'!H85 -> 0 | I85: 0 | J85: 0 | L85: ='6. Historical Wholesale'!L85 -> 0 | M85: 0 | N85: 0 | P85: 0
B86: June | D86: ='6. Historical Wholesale'!D86 -> 0 | E86: 0 | F86: 0 | H86: ='6. Historical Wholesale'!H86 -> 0 | I86: 0 | J86: 0 | L86: ='6. Historical Wholesale'!L86 -> 0 | M86: 0 | N86: 0 | P86: 0
B87: July | D87: ='6. Historical Wholesale'!D87 -> 0 | E87: 0 | F87: 0 | H87: ='6. Historical Wholesale'!H87 -> 0 | I87: 0 | J87: 0 | L87: ='6. Historical Wholesale'!L87 -> 0 | M87: 0 | N87: 0 | P87: 0
B88: August | D88: ='6. Historical Wholesale'!D88 -> 0 | E88: 0 | F88: 0 | H88: ='6. Historical Wholesale'!H88 -> 0 | I88: 0 | J88: 0 | L88: ='6. Historical Wholesale'!L88 -> 0 | M88: 0 | N88: 0 | P88: 0
B89: September | D89: ='6. Historical Wholesale'!D89 -> 0 | E89: 0 | F89: 0 | H89: ='6. Historical Wholesale'!H89 -> 0 | I89: 0 | J89: 0 | L89: ='6. Historical Wholesale'!L89 -> 0 | M89: 0 | N89: 0 | P89: 0
B90: October | D90: ='6. Historical Wholesale'!D90 -> 0 | E90: 0 | F90: 0 | H90: ='6. Historical Wholesale'!H90 -> 0 | I90: 0 | J90: 0 | L90: ='6. Historical Wholesale'!L90 -> 0 | M90: 0 | N90: 0 | P90: 0
B91: November | D91: ='6. Historical Wholesale'!D91 -> 0 | E91: 0 | F91: 0 | H91: ='6. Historical Wholesale'!H91 -> 0 | I91: 0 | J91: 0 | L91: ='6. Historical Wholesale'!L91 -> 0 | M91: 0 | N91: 0 | P91: 0
B92: December | D92: ='6. Historical Wholesale'!D92 -> 0 | E92: 0 | F92: 0 | H92: ='6. Historical Wholesale'!H92 -> 0 | I92: 0 | J92: 0 | L92: ='6. Historical Wholesale'!L92 -> 0 | M92: 0 | N92: 0 | P92: 0
B94: Total | D94: =SUM(D81:D92) -> 0 | E94: =IF(D94<>0,F94/D94,0) -> 0 | F94: =SUM(F81:F92) -> 0 | H94: =SUM(H81:H92) -> 0 | I94: =IF(H94<>0,J94/H94,0) -> 0 | J94: =SUM(J81:J92) -> 0 | L94: =SUM(L81:L92) -> 0 | M94: =IF(L94<>0,N94/L94,0) -> 0 | N94: =SUM(N81:N92) -> 0 | P94: =SUM(P81:P92) -> 0
B96: Total | D96: Network | H96: Line Connection | L96: Transformation Connection | P96: Total Line
B98: Month | D98: Units Billed | E98: Rate | F98: Amount | H98: Units Billed | I98: Rate | J98: Amount | L98: Units Billed | M98: Rate | N98: Amount | P98: Amount
B100: January | D100: =D24+D43+D62+D81 -> 47686.71 | E100: =IF(D100<>0,F100/D100,0) -> 3.4121 | F100: =F24+F43+F62+F81 -> 162711.8232 | H100: =H24+H43+H62+H81 -> 47837.45 | I100: =IF(H100<>0,J100/H100,0) -> 0.7879 | J100: =J24+J43+J62+J81 -> 37691.12686 | L100: =L24+L43+L62+L81 -> 47837.45 | M100: =IF(L100<>0,N100/L100,0) -> 1.8018 | N100: =N24+N43+N62+N81 -> 86193.51741 | P100: =J100+N100 -> 123884.6443
B101: February | D101: =D25+D44+D63+D82 -> 49315.15 | E101: 3.4121 | F101: =F25+F44+F63+F82 -> 168268.2233 | H101: =H25+H44+H63+H82 -> 50980.83 | I101: 0.7879 | J101: =J25+J44+J63+J82 -> 40167.79596 | L101: =L25+L44+L63+L82 -> 50980.83 | M101: 1.8018 | N101: =N25+N44+N63+N82 -> 91857.25949 | P101: 132025.0555
B102: March | D102: 36964.64 | E102: 3.4121 | F102: 126127.0481 | H102: 40349.38 | I102: 0.7879 | J102: 31791.2765 | L102: 40349.38 | M102: 1.8018 | N102: 72701.51288 | P102: 104492.7894
B103: April | D103: 34228 | E103: 3.4121 | F103: 116789.3588 | H103: 36126.46 | I103: 0.7879 | J103: 28464.03783 | L103: 36126.46 | M103: 1.8018 | N103: 65092.65563 | P103: 93556.69346
B104: May | D104: 37837.44 | E104: 3.4121 | F104: 129105.129 | H104: 38096.48 | I104: 0.7879 | J104: 30016.21659 | L104: 38096.48 | M104: 1.8018 | N104: 68642.23766 | P104: 98658.45426
B105: June | D105: 40588.63 | E105: 3.4121 | F105: 138492.4644 | H105: 40594.4 | I105: 0.7879 | J105: 31984.32776 | L105: 40594.4 | M105: 1.8018 | N105: 73142.98992 | P105: 105127.3177
B106: July | D106: 48974.8 | E106: 3.4121 | F106: 167106.9151 | H106: 48974.8 | I106: 0.7879 | J106: 38587.24492 | L106: 48974.8 | M106: 1.8018 | N106: 88242.79464 | P106: 126830.0396
B107: August | D107: 48999.38 | E107: 3.4121 | F107: 167190.7845 | H107: 50218.25 | I107: 0.7879 | J107: 39566.95918 | L107: 50218.25 | M107: 1.8018 | N107: 90483.24285 | P107: 130050.202
B108: September | D108: 39102.91 | E108: 3.4121 | F108: 133423.0392 | H108: 41214.53 | I108: 0.7879 | J108: 32472.92819 | L108: 41214.53 | M108: 1.8018 | N108: 74260.34015 | P108: 106733.2683
B109: October | D109: 38719.58 | E109: 3.4121 | F109: 132115.0789 | H109: 39919.84 | I109: 0.7879 | J109: 31452.84194 | L109: 39919.84 | M109: 1.8018 | N109: 71927.56771 | P109: 103380.4096
B110: November | D110: 47999.06 | E110: 3.4121 | F110: 163777.5926 | H110: 50241.05 | I110: 0.7879 | J110: 39584.9233 | L110: 50241.05 | M110: 1.8018 | N110: 90524.32389 | P110: 130109.2472
B111: December | D111: 39783.6 | E111: 3.4121 | F111: 135745.6216 | H111: 43105.01 | I111: 0.7879 | J111: 33962.43738 | L111: 43105.01 | M111: 1.8018 | N111: 77666.60702 | P111: 111629.0444
B113: Total | D113: =SUM(D100:D111) -> 510199.9 | E113: =IF(D113<>0,F113/D113,0) -> 3.4121 | F113: =SUM(F100:F111) -> 1740853.079 | H113: =SUM(H100:H111) -> 527658.48 | I113: =IF(H113<>0,J113/H113,0) -> 0.7879 | J113: =SUM(J100:J111) -> 415742.1164 | L113: =SUM(L100:L111) -> 527658.48 | M113: =IF(L113<>0,N113/L113,0) -> 1.8018 | N113: =SUM(N100:N111) -> 950735.0493 | P113: =SUM(P100:P111) -> 1366477.166
N115: Low Voltage Switchgear Credit (if applicable) | P115: ='5. UTRs and Sub-Transmission'!G95 -> 0
N117: Total including deduction for Low Voltage Switchgear Credit | P117: =P113+P115 -> 1366477.166

Sheet 8. Forecast Wholesale
B13: The purpose of this sheet is to calculate the expected billing when forecasted 2016 Uniform Transmission Rates are applied against historical 2014 transmission units.
B20: IESO | D20: Network | H20: Line Connection | L20: Transformation Connection | P20: Total Line
B22: Month | D22: Units Billed | E22: Rate | F22: Amount | H22: Units Billed | I22: Rate | J22: Amount | L22: Units Billed | M22: Rate | N22: Amount | P22: Amount
B24: January | D24: ='6. Historical Wholesale'!D24 -> 0 | E24: ='5. UTRs and Sub-Transmission'!I22 -> 3.78 | F24: =D24*E24 -> 0 | H24: ='6. Historical Wholesale'!H24 -> 0 | I24: ='5. UTRs and Sub-Transmission'!I24 -> 0.86 | J24: =H24*I24 -> 0 | L24: ='6. Historical Wholesale'!L24 -> 0 | M24: ='5. UTRs and Sub-Transmission'!I26 -> 2 | N24: =L24*M24 -> 0 | P24: =J24+N24 -> 0
B25: February | D25: ='6. Historical Wholesale'!D25 -> 0 | E25: =E24 -> 3.78 | F25: 0 | H25: ='6. Historical Wholesale'!H25 -> 0 | I25: =I24 -> 0.86 | J25: 0 | L25: ='6. Historical Wholesale'!L25 -> 0 | M25: =M24 -> 2 | N25: 0 | P25: 0
B26: March | D26: ='6. Historical Wholesale'!D26 -> 0 | E26: 3.78 | F26: 0 | H26: ='6. Historical Wholesale'!H26 -> 0 | I26: 0.86 | J26: 0 | L26: ='6. Historical Wholesale'!L26 -> 0 | M26: 2 | N26: 0 | P26: 0
B27: April | D27: ='6. Historical Wholesale'!D27 -> 0 | E27: 3.78 | F27: 0 | H27: ='6. Historical Wholesale'!H27 -> 0 | I27: 0.86 | J27: 0 | L27: ='6. Historical Wholesale'!L27 -> 0 | M27: 2 | N27: 0 | P27: 0
B28: May | D28: ='6. Historical Wholesale'!D28 -> 0 | E28: 3.78 | F28: 0 | H28: ='6. Historical Wholesale'!H28 -> 0 | I28: 0.86 | J28: 0 | L28: ='6. Historical Wholesale'!L28 -> 0 | M28: 2 | N28: 0 | P28: 0
B29: June | D29: ='6. Historical Wholesale'!D29 -> 0 | E29: 3.78 | F29: 0 | H29: ='6. Historical Wholesale'!H29 -> 0 | I29: 0.86 | J29: 0 | L29: ='6. Historical Wholesale'!L29 -> 0 | M29: 2 | N29: 0 | P29: 0
B30: July | D30: ='6. Historical Wholesale'!D30 -> 0 | E30: 3.78 | F30: 0 | H30: ='6. Historical Wholesale'!H30 -> 0 | I30: 0.86 | J30: 0 | L30: ='6. Historical Wholesale'!L30 -> 0 | M30: 2 | N30: 0 | P30: 0
B31: August | D31: ='6. Historical Wholesale'!D31 -> 0 | E31: 3.78 | F31: 0 | H31: ='6. Historical Wholesale'!H31 -> 0 | I31: 0.86 | J31: 0 | L31: ='6. Historical Wholesale'!L31 -> 0 | M31: 2 | N31: 0 | P31: 0
B32: September | D32: ='6. Historical Wholesale'!D32 -> 0 | E32: 3.78 | F32: 0 | H32: ='6. Historical Wholesale'!H32 -> 0 | I32: 0.86 | J32: 0 | L32: ='6. Historical Wholesale'!L32 -> 0 | M32: 2 | N32: 0 | P32: 0
B33: October | D33: ='6. Historical Wholesale'!D33 -> 0 | E33: 3.78 | F33: 0 | H33: ='6. Historical Wholesale'!H33 -> 0 | I33: 0.86 | J33: 0 | L33: ='6. Historical Wholesale'!L33 -> 0 | M33: 2 | N33: 0 | P33: 0
B34: November | D34: ='6. Historical Wholesale'!D34 -> 0 | E34: 3.78 | F34: 0 | H34: ='6. Historical Wholesale'!H34 -> 0 | I34: 0.86 | J34: 0 | L34: ='6. Historical Wholesale'!L34 -> 0 | M34: 2 | N34: 0 | P34: 0
B35: December | D35: ='6. Historical Wholesale'!D35 -> 0 | E35: 3.78 | F35: 0 | H35: ='6. Historical Wholesale'!H35 -> 0 | I35: 0.86 | J35: 0 | L35: ='6. Historical Wholesale'!L35 -> 0 | M35: 2 | N35: 0 | P35: 0
B37: Total | D37: =SUM(D24:D35) -> 0 | E37: =IF(D37<>0,F37/D37,0) -> 0 | F37: =SUM(F24:F35) -> 0 | H37: =SUM(H24:H35) -> 0 | I37: =IF(H37<>0,J37/H37,0) -> 0 | J37: =SUM(J24:J35) -> 0 | L37: =SUM(L24:L35) -> 0 | M37: =IF(L37<>0,N37/L37,0) -> 0 | N37: =SUM(N24:N35) -> 0 | P37: =SUM(P24:P35) -> 0
B39: Hydro One | D39: Network | H39: Line Connection | L39: Transformation Connection | P39: Total Line
B41: Month | D41: Units Billed | E41: Rate | F41: Amount | H41: Units Billed | I41: Rate | J41: Amount | L41: Units Billed | M41: Rate | N41: Amount | P41: Amount
B43: January | D43: ='6. Historical Wholesale'!D43 -> 47686.71 | E43: ='5. UTRs and Sub-Transmission'!I35+'5. UTRs and Sub-Transmission'!I79 -> 3.66 | F43: =D43*E43 -> 174533.3586 | H43: ='6. Historical Wholesale'!H43 -> 47837.45 | I43: ='5. UTRs and Sub-Transmission'!I37+'5. UTRs and Sub-Transmission'!I81 -> 0.87 | J43: =H43*I43 -> 41618.5815 | L43: ='6. Historical Wholesale'!L43 -> 47837.45 | M43: ='5. UTRs and Sub-Transmission'!I39 -> 2.02 | N43: =L43*M43 -> 96631.649 | P43: =J43+N43 -> 138250.2305
B44: February | D44: ='6. Historical Wholesale'!D44 -> 49315.15 | E44: =E43 -> 3.66 | F44: 180493.449 | H44: ='6. Historical Wholesale'!H44 -> 50980.83 | I44: =I43 -> 0.87 | J44: 44353.3221 | L44: ='6. Historical Wholesale'!L44 -> 50980.83 | M44: =M43 -> 2.02 | N44: 102981.2766 | P44: 147334.5987
B45: March | D45: ='6. Historical Wholesale'!D45 -> 36964.64 | E45: 3.66 | F45: 135290.5824 | H45: ='6. Historical Wholesale'!H45 -> 40349.38 | I45: 0.87 | J45: 35103.9606 | L45: ='6. Historical Wholesale'!L45 -> 40349.38 | M45: 2.02 | N45: 81505.7476 | P45: 116609.7082
B46: April | D46: ='6. Historical Wholesale'!D46 -> 34228 | E46: 3.66 | F46: 125274.48 | H46: ='6. Historical Wholesale'!H46 -> 36126.46 | I46: 0.87 | J46: 31430.0202 | L46: ='6. Historical Wholesale'!L46 -> 36126.46 | M46: 2.02 | N46: 72975.4492 | P46: 104405.4694
B47: May | D47: ='6. Historical Wholesale'!D47 -> 37837.44 | E47: 3.66 | F47: 138485.0304 | H47: ='6. Historical Wholesale'!H47 -> 38096.48 | I47: 0.87 | J47: 33143.9376 | L47: ='6. Historical Wholesale'!L47 -> 38096.48 | M47: 2.02 | N47: 76954.8896 | P47: 110098.8272
B48: June | D48: ='6. Historical Wholesale'!D48 -> 40588.63 | E48: 3.66 | F48: 148554.3858 | H48: ='6. Historical Wholesale'!H48 -> 40594.4 | I48: 0.87 | J48: 35317.128 | L48: ='6. Historical Wholesale'!L48 -> 40594.4 | M48: 2.02 | N48: 82000.688 | P48: 117317.816
B49: July | D49: ='6. Historical Wholesale'!D49 -> 48974.8 | E49: 3.66 | F49: 179247.768 | H49: ='6. Historical Wholesale'!H49 -> 48974.8 | I49: 0.87 | J49: 42608.076 | L49: ='6. Historical Wholesale'!L49 -> 48974.8 | M49: 2.02 | N49: 98929.096 | P49: 141537.172
B50: August | D50: ='6. Historical Wholesale'!D50 -> 48999.38 | E50: 3.66 | F50: 179337.7308 | H50: ='6. Historical Wholesale'!H50 -> 50218.25 | I50: 0.87 | J50: 43689.8775 | L50: ='6. Historical Wholesale'!L50 -> 50218.25 | M50: 2.02 | N50: 101440.865 | P50: 145130.7425
B51: September | D51: ='6. Historical Wholesale'!D51 -> 39102.91 | E51: 3.66 | F51: 143116.6506 | H51: ='6. Historical Wholesale'!H51 -> 41214.53 | I51: 0.87 | J51: 35856.6411 | L51: ='6. Historical Wholesale'!L51 -> 41214.53 | M51: 2.02 | N51: 83253.3506 | P51: 119109.9917
B52: October | D52: ='6. Historical Wholesale'!D52 -> 38719.58 | E52: 3.66 | F52: 141713.6628 | H52: ='6. Historical Wholesale'!H52 -> 39919.84 | I52: 0.87 | J52: 34730.2608 | L52: ='6. Historical Wholesale'!L52 -> 39919.84 | M52: 2.02 | N52: 80638.0768 | P52: 115368.3376
B53: November | D53: ='6. Historical Wholesale'!D53 -> 47999.06 | E53: 3.66 | F53: 175676.5596 | H53: ='6. Historical Wholesale'!H53 -> 50241.05 | I53: 0.87 | J53: 43709.7135 | L53: ='6. Historical Wholesale'!L53 -> 50241.05 | M53: 2.02 | N53: 101486.921 | P53: 145196.6345
B54: December | D54: ='6. Historical Wholesale'!D54 -> 39783.6 | E54: 3.66 | F54: 145607.976 | H54: ='6. Historical Wholesale'!H54 -> 43105.01 | I54: 0.87 | J54: 37501.3587 | L54: ='6. Historical Wholesale'!L54 -> 43105.01 | M54: 2.02 | N54: 87072.1202 | P54: 124573.4789
B56: Total | D56: =SUM(D43:D54) -> 510199.9 | E56: =IF(D56<>0,F56/D56,0) -> 3.66 | F56: =SUM(F43:F54) -> 1867331.634 | H56: =SUM(H43:H54) -> 527658.48 | I56: =IF(H56<>0,J56/H56,0) -> 0.87 | J56: =SUM(J43:J54) -> 459062.8776 | L56: =SUM(L43:L54) -> 527658.48 | M56: =IF(L56<>0,N56/L56,0) -> 2.02 | N56: =SUM(N43:N54) -> 1065870.13 | P56: =SUM(P43:P54) -> 1524933.007
B58: ='6. Historical Wholesale'!B58 -> Add Extra Host Here (I) | D58: Network | H58: Line Connection | L58: Transformation Connection | P58: Total Line
B60: Month | D60: Units Billed | E60: Rate | F60: Amount | H60: Units Billed | I60: Rate | J60: Amount | L60: Units Billed | M60: Rate | N60: Amount | P60: Amount
B62: January | D62: ='6. Historical Wholesale'!D62 -> 0 | E62: ='5. UTRs and Sub-Transmission'!I50 -> 0 | F62: =D62*E62 -> 0 | H62: ='6. Historical Wholesale'!H62 -> 0 | I62: ='5. UTRs and Sub-Transmission'!I52 -> 0 | J62: =H62*I62 -> 0 | L62: ='6. Historical Wholesale'!L62 -> 0 | M62: ='5. UTRs and Sub-Transmission'!I54 -> 0 | N62: =L62*M62 -> 0 | P62: =J62+N62 -> 0
B63: February | D63: ='6. Historical Wholesale'!D63 -> 0 | E63: =E62 -> 0 | F63: 0 | H63: ='6. Historical Wholesale'!H63 -> 0 | I63: =I62 -> 0 | J63: 0 | L63: ='6. Historical Wholesale'!L63 -> 0 | M63: =M62 -> 0 | N63: 0 | P63: 0
B64: March | D64: ='6. Historical Wholesale'!D64 -> 0 | E64: 0 | F64: 0 | H64: ='6. Historical Wholesale'!H64 -> 0 | I64: 0 | J64: 0 | L64: ='6. Historical Wholesale'!L64 -> 0 | M64: 0 | N64: 0 | P64: 0
B65: April | D65: ='6. Historical Wholesale'!D65 -> 0 | E65: 0 | F65: 0 | H65: ='6. Historical Wholesale'!H65 -> 0 | I65: 0 | J65: 0 | L65: ='6. Historical Wholesale'!L65 -> 0 | M65: 0 | N65: 0 | P65: 0
B66: May | D66: ='6. Historical Wholesale'!D66 -> 0 | E66: 0 | F66: 0 | H66: ='6. Historical Wholesale'!H66 -> 0 | I66: 0 | J66: 0 | L66: ='6. Historical Wholesale'!L66 -> 0 | M66: 0 | N66: 0 | P66: 0
B67: June | D67: ='6. Historical Wholesale'!D67 -> 0 | E67: 0 | F67: 0 | H67: ='6. Historical Wholesale'!H67 -> 0 | I67: 0 | J67: 0 | L67: ='6. Historical Wholesale'!L67 -> 0 | M67: 0 | N67: 0 | P67: 0
B68: July | D68: ='6. Historical Wholesale'!D68 -> 0 | E68: 0 | F68: 0 | H68: ='6. Historical Wholesale'!H68 -> 0 | I68: 0 | J68: 0 | L68: ='6. Historical Wholesale'!L68 -> 0 | M68: 0 | N68: 0 | P68: 0
B69: August | D69: ='6. Historical Wholesale'!D69 -> 0 | E69: 0 | F69: 0 | H69: ='6. Historical Wholesale'!H69 -> 0 | I69: 0 | J69: 0 | L69: ='6. Historical Wholesale'!L69 -> 0 | M69: 0 | N69: 0 | P69: 0
B70: September | D70: ='6. Historical Wholesale'!D70 -> 0 | E70: 0 | F70: 0 | H70: ='6. Historical Wholesale'!H70 -> 0 | I70: 0 | J70: 0 | L70: ='6. Historical Wholesale'!L70 -> 0 | M70: 0 | N70: 0 | P70: 0
B71: October | D71: ='6. Historical Wholesale'!D71 -> 0 | E71: 0 | F71: 0 | H71: ='6. Historical Wholesale'!H71 -> 0 | I71: 0 | J71: 0 | L71: ='6. Historical Wholesale'!L71 -> 0 | M71: 0 | N71: 0 | P71: 0
B72: November | D72: ='6. Historical Wholesale'!D72 -> 0 | E72: 0 | F72: 0 | H72: ='6. Historical Wholesale'!H72 -> 0 | I72: 0 | J72: 0 | L72: ='6. Historical Wholesale'!L72 -> 0 | M72: 0 | N72: 0 | P72: 0
B73: December | D73: ='6. Historical Wholesale'!D73 -> 0 | E73: 0 | F73: 0 | H73: ='6. Historical Wholesale'!H73 -> 0 | I73: 0 | J73: 0 | L73: ='6. Historical Wholesale'!L73 -> 0 | M73: 0 | N73: 0 | P73: 0
B75: Total | D75: =SUM(D62:D73) -> 0 | E75: =IF(D75<>0,F75/D75,0) -> 0 | F75: =SUM(F62:F73) -> 0 | H75: =SUM(H62:H73) -> 0 | I75: =IF(H75<>0,J75/H75,0) -> 0 | J75: =SUM(J62:J73) -> 0 | L75: =SUM(L62:L73) -> 0 | M75: =IF(L75<>0,N75/L75,0) -> 0 | N75: =SUM(N62:N73) -> 0 | P75: =SUM(P62:P73) -> 0
B77: ='6. Historical Wholesale'!B77 -> Add Extra Host Here (II) | D77: Network | H77: Line Connection | L77: Transformation Connection | P77: Total Line
B79: Month | D79: Units Billed | E79: Rate | F79: Amount | H79: Units Billed | I79: Rate | J79: Amount | L79: Units Billed | M79: Rate | N79: Amount | P79: Amount
B81: January | D81: ='6. Historical Wholesale'!D81 -> 0 | E81: ='5. UTRs and Sub-Transmission'!I65 -> 0 | F81: =D81*E81 -> 0 | H81: ='6. Historical Wholesale'!H81 -> 0 | I81: ='5. UTRs and Sub-Transmission'!I67 -> 0 | J81: =H81*I81 -> 0 | L81: ='6. Historical Wholesale'!L81 -> 0 | M81: ='5. UTRs and Sub-Transmission'!I69 -> 0 | N81: =L81*M81 -> 0 | P81: =J81+N81 -> 0
B82: February | D82: ='6. Historical Wholesale'!D82 -> 0 | E82: =E81 -> 0 | F82: 0 | H82: ='6. Historical Wholesale'!H82 -> 0 | I82: =I81 -> 0 | J82: 0 | L82: ='6. Historical Wholesale'!L82 -> 0 | M82: =M81 -> 0 | N82: 0 | P82: 0
B83: March | D83: ='6. Historical Wholesale'!D83 -> 0 | E83: 0 | F83: 0 | H83: ='6. Historical Wholesale'!H83 -> 0 | I83: 0 | J83: 0 | L83: ='6. Historical Wholesale'!L83 -> 0 | M83: 0 | N83: 0 | P83: 0
B84: April | D84: ='6. Historical Wholesale'!D84 -> 0 | E84: 0 | F84: 0 | H84: ='6. Historical Wholesale'!H84 -> 0 | I84: 0 | J84: 0 | L84: ='6. Historical Wholesale'!L84 -> 0 | M84: 0 | N84: 0 | P84: 0
B85: May | D85: ='6. Historical Wholesale'!D85 -> 0 | E85: 0 | F85: 0 | H85: ='6. Historical Wholesale'!H85 -> 0 | I85: 0 | J85: 0 | L85: ='6. Historical Wholesale'!L85 -> 0 | M85: 0 | N85: 0 | P85: 0
B86: June | D86: ='6. Historical Wholesale'!D86 -> 0 | E86: 0 | F86: 0 | H86: ='6. Historical Wholesale'!H86 -> 0 | I86: 0 | J86: 0 | L86: ='6. Historical Wholesale'!L86 -> 0 | M86: 0 | N86: 0 | P86: 0
B87: July | D87: ='6. Historical Wholesale'!D87 -> 0 | E87: 0 | F87: 0 | H87: ='6. Historical Wholesale'!H87 -> 0 | I87: 0 | J87: 0 | L87: ='6. Historical Wholesale'!L87 -> 0 | M87: 0 | N87: 0 | P87: 0
B88: August | D88: ='6. Historical Wholesale'!D88 -> 0 | E88: 0 | F88: 0 | H88: ='6. Historical Wholesale'!H88 -> 0 | I88: 0 | J88: 0 | L88: ='6. Historical Wholesale'!L88 -> 0 | M88: 0 | N88: 0 | P88: 0
B89: September | D89: ='6. Historical Wholesale'!D89 -> 0 | E89: 0 | F89: 0 | H89: ='6. Historical Wholesale'!H89 -> 0 | I89: 0 | J89: 0 | L89: ='6. Historical Wholesale'!L89 -> 0 | M89: 0 | N89: 0 | P89: 0
B90: October | D90: ='6. Historical Wholesale'!D90 -> 0 | E90: 0 | F90: 0 | H90: ='6. Historical Wholesale'!H90 -> 0 | I90: 0 | J90: 0 | L90: ='6. Historical Wholesale'!L90 -> 0 | M90: 0 | N90: 0 | P90: 0
B91: November | D91: ='6. Historical Wholesale'!D91 -> 0 | E91: 0 | F91: 0 | H91: ='6. Historical Wholesale'!H91 -> 0 | I91: 0 | J91: 0 | L91: ='6. Historical Wholesale'!L91 -> 0 | M91: 0 | N91: 0 | P91: 0
B92: December | D92: ='6. Historical Wholesale'!D92 -> 0 | E92: 0 | F92: 0 | H92: ='6. Historical Wholesale'!H92 -> 0 | I92: 0 | J92: 0 | L92: ='6. Historical Wholesale'!L92 -> 0 | M92: 0 | N92: 0 | P92: 0
B94: Total | D94: =SUM(D81:D92) -> 0 | E94: =IF(D94<>0,F94/D94,0) -> 0 | F94: =SUM(F81:F92) -> 0 | H94: =SUM(H81:H92) -> 0 | I94: =IF(H94<>0,J94/H94,0) -> 0 | J94: =SUM(J81:J92) -> 0 | L94: =SUM(L81:L92) -> 0 | M94: =IF(L94<>0,N94/L94,0) -> 0 | N94: =SUM(N81:N92) -> 0 | P94: =SUM(P81:P92) -> 0
B96: Total | D96: Network | H96: Line Connection | L96: Transformation Connection | P96: Total Line
B98: Month | D98: Units Billed | E98: Rate | F98: Amount | H98: Units Billed | I98: Rate | J98: Amount | L98: Units Billed | M98: Rate | N98: Amount | P98: Amount
B100: January | D100: =D24+D43+D62+D81 -> 47686.71 | E100: =IF(D100<>0,F100/D100,0) -> 3.66 | F100: =F24+F43+F62+F81 -> 174533.3586 | H100: =H24+H43+H62+H81 -> 47837.45 | I100: =IF(H100<>0,J100/H100,0) -> 0.87 | J100: =J24+J43+J62+J81 -> 41618.5815 | L100: =L24+L43+L62+L81 -> 47837.45 | M100: =IF(L100<>0,N100/L100,0) -> 2.02 | N100: =N24+N43+N62+N81 -> 96631.649 | P100: =J100+N100 -> 138250.2305
B101: February | D101: =D25+D44+D63+D82 -> 49315.15 | E101: 3.66 | F101: 180493.449 | H101: =H25+H44+H63+H82 -> 50980.83 | I101: 0.87 | J101: =J25+J44+J63+J82 -> 44353.3221 | L101: =L25+L44+L63+L82 -> 50980.83 | M101: 2.02 | N101: =N25+N44+N63+N82 -> 102981.2766 | P101: 147334.5987
B102: March | D102: 36964.64 | E102: 3.66 | F102: 135290.5824 | H102: =H26+H45+H64+H83 -> 40349.38 | I102: 0.87 | J102: =J26+J45+J64+J83 -> 35103.9606 | L102: =L26+L45+L64+L83 -> 40349.38 | M102: 2.02 | N102: =N26+N45+N64+N83 -> 81505.7476 | P102: 116609.7082
B103: April | D103: 34228 | E103: 3.66 | F103: 125274.48 | H103: =H27+H46+H65+H84 -> 36126.46 | I103: 0.87 | J103: =J27+J46+J65+J84 -> 31430.0202 | L103: =L27+L46+L65+L84 -> 36126.46 | M103: 2.02 | N103: =N27+N46+N65+N84 -> 72975.4492 | P103: 104405.4694
B104: May | D104: 37837.44 | E104: 3.66 | F104: 138485.0304 | H104: =H28+H47+H66+H85 -> 38096.48 | I104: 0.87 | J104: =J28+J47+J66+J85 -> 33143.9376 | L104: =L28+L47+L66+L85 -> 38096.48 | M104: 2.02 | N104: =N28+N47+N66+N85 -> 76954.8896 | P104: 110098.8272
B105: June | D105: 40588.63 | E105: 3.66 | F105: 148554.3858 | H105: =H29+H48+H67+H86 -> 40594.4 | I105: 0.87 | J105: =J29+J48+J67+J86 -> 35317.128 | L105: =L29+L48+L67+L86 -> 40594.4 | M105: 2.02 | N105: =N29+N48+N67+N86 -> 82000.688 | P105: 117317.816
B106: July | D106: 48974.8 | E106: 3.66 | F106: 179247.768 | H106: =H30+H49+H68+H87 -> 48974.8 | I106: 0.87 | J106: =J30+J49+J68+J87 -> 42608.076 | L106: =L30+L49+L68+L87 -> 48974.8 | M106: 2.02 | N106: =N30+N49+N68+N87 -> 98929.096 | P106: 141537.172
B107: August | D107: 48999.38 | E107: 3.66 | F107: 179337.7308 | H107: =H31+H50+H69+H88 -> 50218.25 | I107: 0.87 | J107: =J31+J50+J69+J88 -> 43689.8775 | L107: =L31+L50+L69+L88 -> 50218.25 | M107: 2.02 | N107: =N31+N50+N69+N88 -> 101440.865 | P107: 145130.7425
B108: September | D108: 39102.91 | E108: 3.66 | F108: 143116.6506 | H108: =H32+H51+H70+H89 -> 41214.53 | I108: 0.87 | J108: =J32+J51+J70+J89 -> 35856.6411 | L108: =L32+L51+L70+L89 -> 41214.53 | M108: 2.02 | N108: =N32+N51+N70+N89 -> 83253.3506 | P108: 119109.9917
B109: October | D109: 38719.58 | E109: 3.66 | F109: 141713.6628 | H109: =H33+H52+H71+H90 -> 39919.84 | I109: 0.87 | J109: =J33+J52+J71+J90 -> 34730.2608 | L109: =L33+L52+L71+L90 -> 39919.84 | M109: 2.02 | N109: =N33+N52+N71+N90 -> 80638.0768 | P109: 115368.3376
B110: November | D110: 47999.06 | E110: 3.66 | F110: 175676.5596 | H110: =H34+H53+H72+H91 -> 50241.05 | I110: 0.87 | J110: =J34+J53+J72+J91 -> 43709.7135 | L110: =L34+L53+L72+L91 -> 50241.05 | M110: 2.02 | N110: =N34+N53+N72+N91 -> 101486.921 | P110: 145196.6345
B111: December | D111: 39783.6 | E111: 3.66 | F111: 145607.976 | H111: =H35+H54+H73+H92 -> 43105.01 | I111: 0.87 | J111: =J35+J54+J73+J92 -> 37501.3587 | L111: =L35+L54+L73+L92 -> 43105.01 | M111: 2.02 | N111: =N35+N54+N73+N92 -> 87072.1202 | P111: 124573.4789
B113: Total | D113: =SUM(D100:D111) -> 510199.9 | E113: =IF(D113<>0,F113/D113,0) -> 3.66 | F113: =SUM(F100:F111) -> 1867331.634 | H113: =SUM(H100:H111) -> 527658.48 | I113: =IF(H113<>0,J113/H113,0) -> 0.87 | J113: =SUM(J100:J111) -> 459062.8776 | L113: =SUM(L100:L111) -> 527658.48 | M113: =IF(L113<>0,N113/L113,0) -> 2.02 | N113: =SUM(N100:N111) -> 1065870.13 | P113: =SUM(P100:P111) -> 1524933.007
N115: Low Voltage Switchgear Credit (if applicable) | P115: ='5. UTRs and Sub-Transmission'!I95 -> 0
N117: Total including deduction for Low Voltage Switchgear Credit | P117: =P113+P115 -> 1524933.007

Sheet 9. RTSR Rates to Forecast
A13: The purpose of this sheet is to re-align the current RTS Network Rates to recover current wholesale network costs.
A15: Rate Class | B15: Rate Description | C15: Unit | D15: Current RTSR-Network | E15: Loss Adjusted Billed kWh | F15: Billed kW | G15: Billed Amount | H15: Billed Amount % | I15: Current Wholesale Billing | J15: Adjusted RTSR Network
A17: Residential | B17: RTSR - Network | C17: kWh | D17: 0.0057 | E17: 159434853.9 | G17: =ROUND(D17*E17, 2) -> 908778.67 | H17: =G17/1392349.53 -> 0.652694349 | I17: =H17*total_current_wholesale_network -> 1136244.967 | J17: =IF(ISERROR(I17/E17), 0, I17/E17) -> 0.007126703724
A18: General Service Less Than 50 kW | B18: RTSR - Network | C18: kWh | D18: 0.0052 | E18: 36017209 | G18: =ROUND(D18*E18, 2) -> 187289.49 | H18: =G18/1392349.53 -> 0.1345132712 | I18: =H18*total_current_wholesale_network -> 234167.8424 | J18: =IF(ISERROR(I18/E18), 0, I18/E18) -> 0.006501554365
A19: General Service 50 to 4,999 kW | B19: RTSR - Network | C19: kW | D19: 2.0385 | F19: 66619 | G19: =ROUND(D19*F19, 2) -> 135802.83 | H19: =G19/1392349.53 -> 0.09753501335 | I19: =H19*total_current_wholesale_network -> 169794.1283 | J19: =IF(ISERROR(I19/F19), 0, I19/F19) -> 2.548734269
A20: General Service 50 to 4,999 kW – Interval Metered | B20: RTSR - Network | C20: kW | D20: 2.0385 | F20: 74982 | G20: =ROUND(D20*F20, 2) -> 152850.81 | H20: =G20/1392349.53 -> 0.109779051 | I20: =H20*total_current_wholesale_network -> 191109.1988 | J20: =IF(ISERROR(I20/F20), 0, I20/F20) -> 2.548734347
A21: Unmetered Scattered Load | B21: RTSR - Network | C21: kWh | D21: 0.0052 | E21: 494489.6376 | G21: =ROUND(D21*E21, 2) -> 2571.35 | H21: =G21/1392349.53 -> 0.001846770473 | I21: =H21*total_current_wholesale_network -> 3214.956064 | J21: =IF(ISERROR(I21/E21), 0, I21/E21) -> 0.006501564076
A22: Sentinel Lighting | B22: RTSR - Network | C22: kW | D22: 1.5954 | F22: 298 | G22: =ROUND(D22*F22, 2) -> 475.43 | H22: =G22/1392349.53 -> 0.0003414588002 | I22: =H22*total_current_wholesale_network -> 594.4296036 | J22: =IF(ISERROR(I22/F22), 0, I22/F22) -> 1.994730214
A23: Street Lighting | B23: RTSR - Network | C23: kW | D23: 1.5873 | F23: 2886 | G23: =ROUND(D23*F23, 2) -> 4580.95 | H23: =G23/1392349.53 -> 0.003290086219 | I23: =H23*total_current_wholesale_network -> 5727.556723 | J23: =IF(ISERROR(I23/F23), 0, I23/F23) -> 1.984600389
A25: The purpose of this table is to re-align the current RTS Connection Rates to recover current wholesale connection costs.
A26: Rate Class | B26: Rate Description | C26: Unit | D26: Current RTSR-Connection | E26: Loss Adjusted Billed kWh | F26: Billed kW | G26: Billed Amount | H26: Billed Amount % | I26: Current Wholesale Billing | J26: Adjusted RTSR-Connection
A28: Residential | B28: RTSR - Connection | C28: kWh | D28: 0.0041 | E28: 159434853.9 | G28: =ROUND(D28*E28, 2) -> 653682.9 | H28: =G28/1107976.5 -> 0.5899790293 | I28: =H28*Total_Current_Wholesale_Lineplus -> 806192.8718 | J28: =IF(ISERROR(I28/E28), 0, I28/E28) -> 0.005056566066
A29: General Service Less Than 50 kW | B29: RTSR - Connection | C29: kWh | D29: 0.0039 | E29: 36017209 | G29: =ROUND(D29*E29, 2) -> 140467.12 | H29: =G29/1107976.5 -> 0.1267780679 | I29: =H29*Total_Current_Wholesale_Lineplus -> 173239.335 | J29: =IF(ISERROR(I29/E29), 0, I29/E29) -> 0.004809904481
A30: General Service 50 to 4,999 kW | B30: RTSR - Connection | C30: kW | D30: 2.1757 | F30: 66619 | G30: =ROUND(D30*F30, 2) -> 144942.96 | H30: =G30/1107976.5 -> 0.1308177204 | I30: =H30*Total_Current_Wholesale_Lineplus -> 178759.4278 | J30: =IF(ISERROR(I30/F30), 0, I30/F30) -> 2.683309984
A31: General Service 50 to 4,999 kW – Interval Metered | B31: RTSR - Connection | C31: kW | D31: 2.1757 | F31: 74982 | G31: =ROUND(D31*F31, 2) -> 163138.34 | H31: =G31/1107976.5 -> 0.1472398918 | I31: =H31*Total_Current_Wholesale_Lineplus -> 201199.95 | J31: =IF(ISERROR(I31/F31), 0, I31/F31) -> 2.683309995
A32: Unmetered Scattered Load | B32: RTSR - Connection | C32: kWh | D32: 0.0039 | E32: 494489.6376 | G32: =ROUND(D32*E32, 2) -> 1928.51 | H32: =G32/1107976.5 -> 0.001740569407 | I32: =H32*Total_Current_Wholesale_Lineplus -> 2378.44835 | J32: =IF(ISERROR(I32/E32), 0, I32/E32) -> 0.004809905344
A33: Sentinel Lighting | B33: RTSR - Connection | C33: kW | D33: 1.7004 | F33: 298 | G33: =ROUND(D33*F33, 2) -> 506.72 | H33: =G33/1107976.5 -> 0.0004573382197 | I33: =H33*Total_Current_Wholesale_Lineplus -> 624.9422342 | J33: =IF(ISERROR(I33/F33), 0, I33/F33) -> 2.097121591
A34: Street Lighting | B34: RTSR - Connection | C34: kW | D34: 1.1469 | F34: 2886 | G34: =ROUND(D34*F34, 2) -> 3309.95 | H34: =G34/1107976.5 -> 0.002987382855 | I34: =H34*Total_Current_Wholesale_Lineplus -> 4082.190457 | J34: =IF(ISERROR(I34/F34), 0, I34/F34) -> 1.414480408
A36: The purpose of this table is to update the re-aligned RTS Network Rates to recover future wholesale network costs.
A37: Rate Class | B37: Rate Description | C37: Unit | D37: Adjusted RTSR-Network | E37: Loss Adjusted Billed kWh | F37: Billed kW | G37: Billed Amount | H37: Billed Amount % | I37: Current Wholesale Billing | J37: Proposed RTSR-Network
A39: Residential | B39: RTSR - Network | C39: kWh | D39: 0.007126703724 | E39: 159434853.9 | G39: =IF(ISERROR(D39*E39), 0, ROUND(D39*E39, 2)) -> 1136244.97 | H39: =G39/1740853.09 -> 0.6526943465 | I39: =H39*forecast_wholesale_network -> 1218796.801 | J39: =IF(ISERROR(I39/E39), 0, I39/E39) -> 0.007644481561
A40: General Service Less Than 50 kW | B40: RTSR - Network | C40: kWh | D40: 0.006501554365 | E40: 36017209 | G40: =IF(ISERROR(D40*E40), 0, ROUND(D40*E40, 2)) -> 234167.84 | H40: =G40/1740853.09 -> 0.134513269 | I40: =H40*forecast_wholesale_network -> 251180.8824 | J40: =IF(ISERROR(I40/E40), 0, I40/E40) -> 0.006973913009
A41: General Service 50 to 4,999 kW | B41: RTSR - Network | C41: kW | D41: 2.548734269 | F41: 66619 | G41: =ROUND(D41*F41, 2) -> 169794.13 | H41: =G41/1740853.09 -> 0.09753501371 | I41: =H41*forecast_wholesale_network -> 182130.2165 | J41: =IF(ISERROR(I41/F41), 0, I41/F41) -> 2.733907992
A42: General Service 50 to 4,999 kW – Interval Metered | B42: RTSR - Network | C42: kW | D42: 2.548734347 | F42: 74982 | G42: =ROUND(D42*F42, 2) -> 191109.2 | H42: =G42/1740853.09 -> 0.1097790509 | I42: =H42*forecast_wholesale_network -> 204993.8945 | J42: =IF(ISERROR(I42/F42), 0, I42/F42) -> 2.733908065
A43: Unmetered Scattered Load | B43: RTSR - Network | C43: kWh | D43: 0.006501564076 | E43: 494489.6376 | G43: =IF(ISERROR(D43*E43), 0, ROUND(D43*E43, 2)) -> 3214.96 | H43: =G43/1740853.09 -> 0.001846772722 | I43: =H43*forecast_wholesale_network -> 3448.537125 | J43: =IF(ISERROR(I43/E43), 0, I43/E43) -> 0.006973932036
A44: Sentinel Lighting | B44: RTSR - Network | C44: kW | D44: 1.994730214 | F44: 298 | G44: =ROUND(D44*F44, 2) -> 594.43 | H44: =G44/1740853.09 -> 0.0003414590257 | I44: =H44*forecast_wholesale_network -> 637.6172404 | J44: =IF(ISERROR(I44/F44), 0, I44/F44) -> 2.139655169
A45: Street Lighting | B45: RTSR - Network | C45: kW | D45: 1.984600389 | F45: 2886 | G45: =ROUND(D45*F45, 2) -> 5727.56 | H45: =G45/1740853.09 -> 0.00329008808 | I45: =H45*forecast_wholesale_network -> 6143.68555 | J45: =IF(ISERROR(I45/F45), 0, I45/F45) -> 2.128789172
A47: The purpose of this table is to update the re-aligned RTS Connection Rates to recover future wholesale connection costs.
A48: Rate Class | B48: Rate Description | C48: Unit | D48: Adjusted RTSR-Connection | E48: Loss Adjusted Billed kWh | F48: Billed kW | G48: Billed Amount | H48: Billed Amount % | I48: Current Wholesale Billing | J48: Proposed RTSR-Connection
A50: Residential | B50: RTSR - Connection | C50: kWh | D50: 0.005056566066 | E50: 159434853.9 | G50: =ROUND(D50*E50, 2) -> 806192.87 | H50: =G50/1366477.16 -> 0.5899790305 | I50: =H50*forecast_wholesale_lineplus -> 899678.4971 | J50: =IF(ISERROR(I50/E50), 0, I50/E50) -> 0.00564292233
A51: General Service Less Than 50 kW | B51: RTSR - Connection | C51: kWh | D51: 0.004809904481 | E51: 36017209 | G51: =ROUND(D51*E51, 2) -> 173239.33 | H51: =G51/1366477.16 -> 0.1267780648 | I51: =H51*forecast_wholesale_lineplus -> 193328.0557 | J51: =IF(ISERROR(I51/E51), 0, I51/E51) -> 0.005367657879
A52: General Service 50 to 4,999 kW | B52: RTSR - Connection | C52: kW | D52: 2.683309984 | F52: 66619 | G52: =ROUND(D52*F52, 2) -> 178759.43 | H52: =G52/1366477.16 -> 0.1308177226 | I52: =H52*forecast_wholesale_lineplus -> 199488.2631 | J52: =IF(ISERROR(I52/F52), 0, I52/F52) -> 2.994464988
A53: General Service 50 to 4,999 kW – Interval Metered | B53: RTSR - Connection | C53: kW | D53: 2.683309995 | F53: 74982 | G53: =ROUND(D53*F53, 2) -> 201199.95 | H53: =G53/1366477.16 -> 0.1472398924 | I53: =H53*forecast_wholesale_lineplus -> 224530.9719 | J53: =IF(ISERROR(I53/F53), 0, I53/F53) -> 2.994464963
A54: Unmetered Scattered Load | B54: RTSR - Connection | C54: kWh | D54: 0.004809905344 | E54: 494489.6376 | G54: =ROUND(D54*E54, 2) -> 2378.45 | H54: =G54/1366477.16 -> 0.001740570622 | I54: =H54*forecast_wholesale_lineplus -> 2654.253592 | J54: =IF(ISERROR(I54/E54), 0, I54/E54) -> 0.005367662719
A55: Sentinel Lighting | B55: RTSR - Connection | C55: kW | D55: 2.097121591 | F55: 298 | G55: =ROUND(D55*F55, 2) -> 624.94 | H55: =G55/1366477.16 -> 0.0004573365866 | I55: =H55*forecast_wholesale_lineplus -> 697.4076563 | J55: =IF(ISERROR(I55/F55), 0, I55/F55) -> 2.340294149
A56: Street Lighting | B56: RTSR - Connection | C56: kW | D56: 1.414480408 | F56: 2886 | G56: =ROUND(D56*F56, 2) -> 4082.19 | H56: =G56/1366477.16 -> 0.002987382533 | I56: =H56*forecast_wholesale_lineplus -> 4555.55823 | J56: =IF(ISERROR(I56/F56), 0, I56/F56) -> 1.578502505

Sheet hidden1 (hidden)
A1: =IF('3. Rate Classes'!L17=1, '3. Rate Classes'!C17, "") -> Residential | B1: 1
A2: =IF('3. Rate Classes'!L18=1, '3. Rate Classes'!C18, "") -> General Service Less Than 50 kW | B2: 2
A3: =IF('3. Rate Classes'!L19=1, '3. Rate Classes'!C19, "") -> General Service 50 to 4,999 kW | B3: 3
A4: =IF('3. Rate Classes'!L20=1, '3. Rate Classes'!C20, "") -> General Service 50 to 4,999 kW – Interval Metered | B4: 4
A5: =IF('3. Rate Classes'!L21=1, '3. Rate Classes'!C21, "") -> Unmetered Scattered Load | B5: 5
A6: =IF('3. Rate Classes'!L22=1, '3. Rate Classes'!C22, "") -> Sentinel Lighting | B6: 6
A7: =IF('3. Rate Classes'!L23=1, '3. Rate Classes'!C23, "") -> Street Lighting | B7: 7
A8: =IF('3. Rate Classes'!L24=1, '3. Rate Classes'!C24, "") ->  | B8: 8
A9: =IF('3. Rate Classes'!L25=1, '3. Rate Classes'!C25, "") ->  | B9: 9
A10: =IF('3. Rate Classes'!L26=1, '3. Rate Classes'!C26, "") ->  | B10: 10
A11: =IF('3. Rate Classes'!L27=1, '3. Rate Classes'!C27, "") ->  | B11: 11
A12: =IF('3. Rate Classes'!L28=1, '3. Rate Classes'!C28, "") ->  | B12: 12
A13: =IF('3. Rate Classes'!L29=1, '3. Rate Classes'!C29, "") ->  | B13: 13
A14: =IF('3. Rate Classes'!L30=1, '3. Rate Classes'!C30, "") ->  | B14: 14
A15: =IF('3. Rate Classes'!L31=1, '3. Rate Classes'!C31, "") ->  | B15: 15
A16: =IF('3. Rate Classes'!L32=1, '3. Rate Classes'!C32, "") ->  | B16: 16
A17: =IF('3. Rate Classes'!L33=1, '3. Rate Classes'!C33, "") ->  | B17: 17
A18: =IF('3. Rate Classes'!L34=1, '3. Rate Classes'!C34, "") ->  | B18: 18
A19: =IF('3. Rate Classes'!L35=1, '3. Rate Classes'!C35, "") ->  | B19: 19
A20: =IF('3. Rate Classes'!L36=1, '3. Rate Classes'!C36, "") ->  | B20: 20
A21: =IF('3. Rate Classes'!L37=1, '3. Rate Classes'!C37, "") ->  | B21: 21
A22: =IF('3. Rate Classes'!L38=1, '3. Rate Classes'!C38, "") ->  | B22: 22
